Workbook

Sheet PRC model
A1: PRC CALIBRATION MODEL FOR PDMS SAMPLER
A2: Shen, X., & Reible, D. (2019). An analytical model for the fate and transport of performance reference compounds and target compounds around cylindrical passive samplers. Chemosphere.
A3: Version 1.6
A4: 2021-03-25
A6: Parameters | B6: Symbol | C6: Value | D6: Unit
A7: Inner radius | B7: Li | C7: 0.02485 | D7: cm
A8: Outer radius | B8: Lo | C8: 0.02835 | D8: cm
A9: Sampling time | B9: t | C9: 30 | D9: days
A11: Number of PRCs | B11: 6
A12: PRC # | B12: =PRCNumber(1,$B$11) -> 1 | C12: =PRCNumber(2,$B$11) -> 2 | D12: =PRCNumber(3,$B$11) -> 3 | E12: =PRCNumber(4,$B$11) -> 4 | F12: =PRCNumber(5,$B$11) -> 5 | G12: =PRCNumber(6,$B$11) -> 6 | H12: =PRCNumber(7,$B$11) ->  | I12: =PRCNumber(8,$B$11) ->  | J12: =PRCNumber(9,$B$11) ->  | K12: =PRCNumber(10,$B$11) ->  | L12: =PRCNumber(11,$B$11) ->  | M12: =PRCNumber(12,$B$11) ->  | N12: =PRCNumber(13,$B$11) ->  | O12: =PRCNumber(14,$B$11) ->  | P12: =PRCNumber(15,$B$11) ->  | Q12: =PRCNumber(16,$B$11) ->  | R12: =PRCNumber(17,$B$11) ->  | S12: =PRCNumber(18,$B$11) ->  | T12: =PRCNumber(19,$B$11) ->  | U12: =PRCNumber(20,$B$11) ->  | V12: =PRCNumber(21,$B$11) ->  | W12: =PRCNumber(22,$B$11) ->  | X12: =PRCNumber(23,$B$11) ->  | Y12: =PRCNumber(24,$B$11) ->  | Z12: =PRCNumber(25,$B$11) -> 
A13: PRC name | B13: 13C-PCB28 | C13: 13C-PCB52 | D13: 13C-PCB101 | E13: 13C-PCB138 | F13: 13C-PCB153 | G13: 13C-PCB180
A14: Kow | B14: 5.67 | C14: 5.84 | D14: 6.38 | E14: 6.83 | F14: 6.92 | G14: 7.36
A15: PDMS Kfiber | B15: 5.35249 | C15: 5.51348 | D15: 6.02486 | E15: 6.45101 | F15: 6.53624 | G15: 6.95292
A16: Measured PRC fss | B16: 0.5567688151 | C16: 0.5591378731 | D16: 0.352980581 | E16: 0.27933176 | F16: 0.1552240167 | G16: 0.3040735343
A18: Fitting parameters
A19: Option(Linear/Nonlinear) | B19: Nonlinear
A20: Fix a/alpha? (Y or N) | B20: N
A21: a/alpha value | B21: 1
A22: R_initial guess | B22: 1
A23: R_step_size (R(i+1)/R(i)) | B23: =10^0.1 -> 1.258925412
A25: Results
A26: 1st order model | B26: (log(ke) = x*log(Kow)+y)
B27: x | C27: y | D27: r^2
B28: -0.3182680529 | C28: 0.2190070981 | D28: 0.6457096968
A30: Rectangular diffusion model | B30: (log(RD) =a*log(Kow)+b)
B31: a | C31: b | D31: r^2
B32: 1.082904937 | C32: -6.856053408 | D32: 0.9695320264
A34: Cylindrical diffusion model | B34: (log(R) = α*log(Kow)+β)
A35: D | B35: α | C35: β | D35: r^2
A36: 1.044648065e-05 | B36: 1.790650955 | C36: -6.893044065 | D36: 0.9772893268
B38: (log(R) = αlog(Kow)+β)
A39: Effective Diffusivity(cm^2/s) | B39: Fitted parameter
A40: D | B40: α | C40: β | D40: r^2
A41: 5e-07 | B41: 1.103098167 | C41: -0.6992022061 | D41: 0.9698198042
A42: =A41*10^0.02 -> 5.23564274e-07 | B42: 1.104078298 | C42: -0.7261885448 | D42: 0.9698337308
A43: =A42*10^0.02 -> 5.482390981e-07 | B43: 1.105106995 | C43: -0.7535203741 | D43: 0.9698483367
A44: 5.740768107e-07 | B44: 1.106186647 | C44: -0.7812147506 | D44: 0.9698636537
A45: 6.011322173e-07 | B45: 1.10731978 | C45: -0.8092897117 | D45: 0.9698797151
A46: 6.294627059e-07 | B46: 1.108509068 | C46: -0.8377643294 | D46: 0.9698965568
A47: 6.591283693e-07 | B47: 1.109757338 | C47: -0.8666587722 | D47: 0.9699142165
A48: 6.901921323e-07 | B48: 1.111067583 | C48: -0.8959943729 | D48: 0.9699327346
A49: 7.227198854e-07 | B49: 1.112442969 | C49: -0.9257937034 | D49: 0.9699521535
A50: 7.567806242e-07 | B50: 1.113886849 | C50: -0.9560806544 | D50: 0.9699725182
A51: 7.924465962e-07 | B51: 1.115402777 | C51: -0.9868805215 | D51: 0.9699938762
A52: 8.297934537e-07 | B52: 1.116994515 | C52: -1.018220097 | D52: 0.9700162775
A53: 8.689004144e-07 | B53: 1.118666052 | C53: -1.050127768 | D53: 0.9700397752
A54: 9.098504293e-07 | B54: 1.120421618 | C54: -1.082633623 | D54: 0.9700644249
A55: 9.52730359e-07 | B55: 1.122265697 | C55: -1.115769564 | D55: 0.9700902856
A56: 9.976311575e-07 | B56: 1.124203049 | C56: -1.149569429 | D56: 0.9701174191
A57: 1.044648065e-06 | B57: 1.126238724 | C57: -1.184069123 | D57: 0.9701458909
A58: 1.093880812e-06 | B58: 1.128190015 | C58: -1.218146058 | D58: 0.9701736378
A59: 1.145433826e-06 | B59: 1.130433333 | C59: -1.254128328 | D59: 0.970205054
A60: 1.19941646e-06 | B60: 1.13279315 | C60: -1.290938553 | D60: 0.9702380572
A61: 1.255943216e-06 | B61: 1.13527596 | C61: -1.328622817 | D61: 0.9702727304
A62: 1.315133996e-06 | B62: 1.137888679 | C62: -1.367230178 | D62: 0.9703091616
A63: 1.377114352e-06 | B63: 1.140638675 | C63: -1.4068129 | D63: 0.9703474445
A64: 1.442015752e-06 | B64: 1.14353381 | C64: -1.447426707 | D64: 0.9703876784
A65: 1.50997586e-06 | B65: 1.146582472 | C65: -1.489131067 | D65: 0.9704299691
A66: 1.58113883e-06 | B66: 1.149793625 | C66: -1.531989503 | D66: 0.970474429
A67: 1.655655607e-06 | B67: 1.153176856 | C67: -1.576069935 | D67: 0.9705211778
A68: 1.733684252e-06 | B68: 1.156742432 | C68: -1.62144506 | D68: 0.9705703428
A69: 1.815390274e-06 | B69: 1.160501353 | C69: -1.668192771 | D69: 0.9706220598
A70: 1.900946982e-06 | B70: 1.164465426 | C70: -1.716396622 | D70: 0.9706764733
A71: 1.990535853e-06 | B71: 1.168647332 | C71: -1.76614634 | D71: 0.9707337373
A72: =A71*10^0.02 -> 2.084346917e-06 | B72: 1.173060711 | C72: -1.817538394 | D72: 0.9707940161
A73: 2.182579161e-06 | B73: 1.17772025 | C73: -1.87067663 | D73: 0.9708574847
A74: 2.285440948e-06 | B74: 1.182641784 | C74: -1.925672975 | D74: 0.9709243303
A75: 2.393150462e-06 | B75: 1.187842409 | C75: -1.982648225 | D75: 0.9709947523
A76: 2.505936168e-06 | B76: 1.193340606 | C76: -2.041732923 | D76: 0.9710689639
A77: 2.624037301e-06 | B77: 1.19915638 | C77: -2.103068351 | D77: 0.9711471929
A78: 2.747704369e-06 | B78: 1.205311421 | C78: -2.166807636 | D78: 0.9712296827
A79: 2.877199687e-06 | B79: 1.211634262 | C79: -2.231901138 | D79: 0.9713170093
A80: 3.01279793e-06 | B80: 1.218534239 | C80: -2.300920856 | D80: 0.9714090502
A81: =A80*10^0.02 -> 3.154786722e-06 | B81: 1.225851258 | C81: -2.372892522 | D81: 0.9715062128
A82: 3.30346724e-06 | B82: 1.233615847 | C82: -2.448031404 | D82: 0.9716088158
A83: 3.459154855e-06 | B83: 1.24186138 | C83: -2.526572807 | D83: 0.9717172002
A84: 3.6221798e-06 | B84: 1.250624414 | C84: -2.608774459 | D84: 0.9718317309
A85: 3.792887875e-06 | B85: 1.259945077 | C85: -2.69491924 | D85: 0.9719527978
A86: 3.971641174e-06 | B86: 1.269867512 | C86: -2.785318322 | D86: 0.9720808177
A87: 4.158818856e-06 | B87: 1.280440389 | C87: -2.880314784 | D87: 0.9722162359
A88: 4.35481795e-06 | B88: 1.291717494 | C88: -2.980287804 | D88: 0.9723595274
A89: 4.560054197e-06 | B89: 1.303761356 | C89: -3.085676045 | D89: 0.9725111545
A90: 4.77496293e-06 | B90: 1.316637908 | C90: -3.196944721 | D90: 0.9726716444
A91: 5e-06 | B91: 1.330418823 | C91: -3.314600905 | D91: 0.9728415902
A92: 5.23564274e-06 | B92: 1.345186419 | C92: -3.43922541 | D92: 0.9730215893
A93: 5.482390981e-06 | B93: 1.361032908 | C93: -3.571469067 | D93: 0.9732122697
A94: 5.740768107e-06 | B94: 1.378061885 | C94: -3.712063411 | D94: 0.9734142859
A95: 6.011322173e-06 | B95: 1.396390099 | C95: -3.861833277 | D95: 0.9736283139
A96: 6.294627059e-06 | B96: 1.416149523 | C96: -4.021711688 | D96: 0.9738550421
A97: 6.591283693e-06 | B97: 1.437489804 | C97: -4.192757432 | D97: 0.9740951573
A98: 6.901921323e-06 | B98: 1.460581146 | C98: -4.376175811 | D98: 0.9743493239
A99: 7.227198854e-06 | B99: 1.48561768 | C99: -4.573343045 | D99: 0.9746181533
A100: 7.567806242e-06 | B100: 1.512821394 | C100: -4.785834776 | D100: 0.9749021593
A101: 7.924465962e-06 | B101: 1.542446636 | C101: -5.015458946 | D101: 0.9752016936
A102: 8.297934537e-06 | B102: 1.574785165 | C102: -5.264292929 | D102: 0.9755168519
A103: 8.689004144e-06 | B103: 1.610171584 | C103: -5.534723885 | D103: 0.9758473394
A104: 9.098504293e-06 | B104: 1.648988741 | C104: -5.829489663 | D104: 0.9761922754
A105: 9.52730359e-06 | B105: 1.691672246 | C105: -6.151714376 | D105: 0.9765499115
A106: 9.976311575e-06 | B106: 1.738712457 | C106: -6.504927257 | D106: 0.976917224
A107: =A106*10^0.02 -> 1.044648065e-05 | B107: 1.790650955 | C107: -6.893044065 | D107: 0.9772893268

Sheet test
A2: 5e-07 | B2: 5.555364401
A3: 5.23564274e-07 | B3: 5.533935403
A4: 5.482390981e-07 | B4: 5.512436287
A5: 5.740768107e-07 | B5: 5.490863538
A6: 6.011322173e-07 | B6: 5.469213443
A7: 6.294627059e-07 | B7: 5.447482088
A8: 6.591283693e-07 | B8: 5.425665336
A9: 6.901921323e-07 | B9: 5.403758821
A10: 7.227198854e-07 | B10: 5.381757929
A11: 7.567806242e-07 | B11: 5.359657782
A12: 7.924465962e-07 | B12: 5.337453225
A13: 8.297934537e-07 | B13: 5.315138805
A14: 8.689004144e-07 | B14: 5.292708749
A15: 9.098504293e-07 | B15: 5.27015695
A16: 9.52730359e-07 | B16: 5.247476938
A17: 9.976311575e-07 | B17: 5.224661858
A18: 1.044648065e-06 | B18: 5.201704442
A19: 1.093880812e-06 | B19: 5.178691329
A20: 1.145433826e-06 | B20: 5.155428672
A21: 1.19941646e-06 | B21: 5.131998607
A22: 1.255943216e-06 | B22: 5.108391875
A23: 1.315133996e-06 | B23: 5.084598629
A24: 1.377114352e-06 | B24: 5.06060839
A25: 1.442015752e-06 | B25: 5.036409996
A26: 1.50997586e-06 | B26: 5.011991547
A27: 1.58113883e-06 | B27: 4.987340349
A28: 1.655655607e-06 | B28: 4.962442841
A29: 1.733684252e-06 | B29: 4.937284529
A30: 1.815390274e-06 | B30: 4.911849902
A31: 1.900946982e-06 | B31: 4.886122343
A32: 1.990535853e-06 | B32: 4.860084033
A33: 2.084346917e-06 | B33: 4.833715838
A34: 2.182579161e-06 | B34: 4.806997188
A35: 2.285440948e-06 | B35: 4.779905942
A36: 2.393150462e-06 | B36: 4.752418236
A37: 2.505936168e-06 | B37: 4.72450831
A38: 2.624037301e-06 | B38: 4.696148321
A39: 2.747704369e-06 | B39: 4.667308123
A40: 2.877199687e-06 | B40: 4.638065131
A41: 3.01279793e-06 | B41: 4.608168278
A42: 3.154786722e-06 | B42: 4.57768411
A43: 3.30346724e-06 | B43: 4.54657045
A44: 3.459154855e-06 | B44: 4.514781218
A45: 3.6221798e-06 | B45: 4.482265969
A46: 3.792887875e-06 | B46: 4.448969347
A47: 3.971641174e-06 | B47: 4.414830474
A48: 4.158818856e-06 | B48: 4.379782222
A49: 4.35481795e-06 | B49: 4.343750388
A50: 4.560054197e-06 | B50: 4.306650841
A51: 4.77496293e-06 | B51: 4.268392216
A52: 5e-06 | B52: 4.228873819
A53: 5.23564274e-06 | B53: 4.187981587
A54: 5.482390981e-06 | B54: 4.145587519
A55: 5.740768107e-06 | B55: 4.101547478
A56: 6.011322173e-06 | B56: 4.055698583
A57: 6.294627059e-06 | B57: 4.007856105
A58: 6.591283693e-06 | B58: 3.957809759
A59: 6.901921323e-06 | B59: 3.905319288
A60: 7.227198854e-06 | B60: 3.850109201
A61: 7.567806242e-06 | B61: 3.791862526
A62: 7.924465962e-06 | B62: 3.730213477
A63: 8.297934537e-06 | B63: 3.664738959
A64: 8.689004144e-06 | B64: 3.594948998
A65: 9.098504293e-06 | B65: 3.520276496
A66: 9.52730359e-06 | B66: 3.440067261
A67: 9.976311575e-06 | B67: 3.353572377
A68: 1.044648065e-05 | B68: 3.25994685

Sheet fitted_R
C1: logR
B2: D(cm^2/s) | C2: ='PRC model'!B12 -> 1 | D2: ='PRC model'!C12 -> 2 | E2: ='PRC model'!D12 -> 3 | F2: ='PRC model'!E12 -> 4 | G2: ='PRC model'!F12 -> 5 | H2: ='PRC model'!G12 -> 6 | I2: ='PRC model'!H12 ->  | J2: ='PRC model'!I12 ->  | K2: ='PRC model'!J12 ->  | L2: ='PRC model'!K12 ->  | M2: ='PRC model'!L12 ->  | N2: ='PRC model'!M12 ->  | O2: ='PRC model'!N12 ->  | P2: ='PRC model'!O12 ->  | Q2: ='PRC model'!P12 ->  | R2: ='PRC model'!Q12 ->  | S2: ='PRC model'!R12 ->  | T2: ='PRC model'!S12 ->  | U2: ='PRC model'!T12 ->  | V2: ='PRC model'!U12 ->  | W2: ='PRC model'!V12 ->  | X2: ='PRC model'!W12 ->  | Y2: ='PRC model'!X12 ->  | Z2: ='PRC model'!Y12 ->  | AA2: ='PRC model'!Z12 -> 
A3: Best fit | B3: 1.044648065e-05 | C3: 3.25994685 | D3: 3.564357512 | E3: 4.531309028 | F3: 5.337101957 | G3: 5.498260543 | H3: 6.286146963
A5: Guess | B5: 5e-07 | C5: 5.555364401 | D5: 5.742891089 | E5: 6.338564099 | F5: 6.834958275 | G5: 6.93423711 | H5: 7.419600303
B6: 5.23564274e-07 | C6: 5.533935403 | D6: 5.721628714 | E6: 6.317830995 | F6: 6.814666229 | G6: 6.914033276 | H6: 7.399827727
B7: 5.482390981e-07 | C7: 5.512436287 | D7: 5.700304477 | E7: 6.297062254 | F7: 6.794360402 | G7: 6.893820031 | H7: 7.380067109
B8: 5.740768107e-07 | C8: 5.490863538 | D8: 5.678915268 | E8: 6.276256057 | F8: 6.774040048 | G8: 6.873596846 | H8: 7.360318971
B9: 6.011322173e-07 | C9: 5.469213443 | D9: 5.657457806 | E9: 6.255410487 | F9: 6.753704388 | G9: 6.853363169 | H9: 7.340583872
B10: 6.294627059e-07 | C10: 5.447482088 | D10: 5.635928629 | E10: 6.234523526 | F10: 6.733352607 | G10: 6.833118423 | H10: 7.320862413
B11: 6.591283693e-07 | C11: 5.425665336 | D11: 5.614324084 | E11: 6.213593046 | F11: 6.712983849 | G11: 6.812862009 | H11: 7.301155238
B12: 6.901921323e-07 | C12: 5.403758821 | D12: 5.59264031 | E12: 6.192616805 | F12: 6.692597217 | G12: 6.7925933 | H12: 7.281463036
B13: 7.227198854e-07 | C13: 5.381757929 | D13: 5.570873233 | E13: 6.171592437 | F13: 6.672191772 | G13: 6.77231164 | H13: 7.261786546
B14: 7.567806242e-07 | C14: 5.359657782 | D14: 5.549018547 | E14: 6.150517445 | F14: 6.651766528 | G14: 6.752016344 | H14: 7.242126558
B15: 7.924465962e-07 | C15: 5.337453225 | D15: 5.527071697 | E15: 6.129389197 | F15: 6.631320447 | G15: 6.731706697 | H15: 7.222483919
B16: 8.297934537e-07 | C16: 5.315138805 | D16: 5.505027872 | E16: 6.10820491 | F16: 6.610852442 | G16: 6.711381949 | H16: 7.202859535
B17: 8.689004144e-07 | C17: 5.292708749 | D17: 5.482881978 | E17: 6.086961647 | F17: 6.59036137 | G17: 6.691041315 | H17: 7.183254378
B18: 9.098504293e-07 | C18: 5.27015695 | D18: 5.460628625 | E18: 6.065656299 | F18: 6.569846027 | G18: 6.670683973 | H18: 7.163669485
B19: 9.52730359e-07 | C19: 5.247476938 | D19: 5.438262107 | E19: 6.044285583 | F19: 6.549305147 | G19: 6.65030906 | H19: 7.144105966
B20: 9.976311575e-07 | C20: 5.224661858 | D20: 5.415776376 | E20: 6.022846022 | F20: 6.528737394 | G20: 6.629915669 | H20: 7.12456501
B21: 1.044648065e-06 | C21: 5.201704442 | D21: 5.393165025 | E21: 6.001333936 | F21: 6.508141362 | G21: 6.609502847 | H21: 7.105047886
B22: 1.093880812e-06 | C22: 5.178691329 | D22: 5.370483632 | E22: 5.97970624 | F22: 6.487391747 | G22: 6.588928848 | H22: 7.085332455
B23: 1.145433826e-06 | C23: 5.155428672 | D23: 5.347602339 | E23: 5.958036339 | F23: 6.466731339 | G23: 6.568470339 | H23: 7.065861006
B24: 1.19941646e-06 | C24: 5.131998607 | D24: 5.324573443 | E24: 5.936281744 | F24: 6.446038661 | G24: 6.547990045 | H24: 7.046419031
B25: 1.255943216e-06 | C25: 5.108391875 | D25: 5.301388788 | E25: 5.914437806 | F25: 6.425311988 | G25: 6.527486825 | H25: 7.027008247
B26: 1.315133996e-06 | C26: 5.084598629 | D26: 5.278039704 | E26: 5.892499591 | F26: 6.404549496 | G26: 6.506959477 | H26: 7.007630496
B27: 1.377114352e-06 | C27: 5.06060839 | D27: 5.254516965 | E27: 5.87046185 | F27: 6.383749254 | G27: 6.486406734 | H27: 6.988287752
B28: 1.442015752e-06 | C28: 5.036409996 | D28: 5.230810744 | E28: 5.848319001 | F28: 6.362909215 | G28: 6.465827258 | H28: 6.968982135
B29: 1.50997586e-06 | C29: 5.011991547 | D29: 5.206910568 | E29: 5.826065102 | F29: 6.342027215 | G29: 6.445219637 | H29: 6.949715925
B30: 1.58113883e-06 | C30: 4.987340349 | D30: 5.182805265 | E30: 5.803693822 | F30: 6.321100953 | G30: 6.424582379 | H30: 6.930491574
B31: 1.655655607e-06 | C31: 4.962442841 | D31: 5.158482906 | E31: 5.781198409 | F31: 6.300127994 | G31: 6.403913911 | H31: 6.911311728
B32: 1.733684252e-06 | C32: 4.937284529 | D32: 5.133930742 | E32: 5.758571655 | F32: 6.27910575 | G32: 6.383212568 | H32: 6.892179238
B33: 1.815390274e-06 | C33: 4.911849902 | D33: 5.109135132 | E33: 5.735805862 | F33: 6.258031471 | G33: 6.362476593 | H33: 6.873097189
B34: 1.900946982e-06 | C34: 4.886122343 | D34: 5.084081466 | E34: 5.712892796 | F34: 6.236902238 | G34: 6.341704126 | H34: 6.854068913
B35: 1.990535853e-06 | C35: 4.860084033 | D35: 5.05875408 | E35: 5.689823639 | F35: 6.215714939 | G35: 6.320893199 | H35: 6.835098025
B36: 2.084346917e-06 | C36: 4.833715838 | D36: 5.033136159 | E36: 5.666588943 | F36: 6.194466263 | G36: 6.300041727 | H36: 6.81618844
B37: 2.182579161e-06 | C37: 4.806997188 | D37: 5.007209631 | E37: 5.643178566 | F37: 6.173152678 | G37: 6.279147501 | H37: 6.797344411
B38: 2.285440948e-06 | C38: 4.779905942 | D38: 4.980955046 | E38: 5.619581609 | F38: 6.151770412 | G38: 6.258208173 | H38: 6.778570558
B39: 2.393150462e-06 | C39: 4.752418236 | D39: 4.954351446 | E39: 5.595786347 | F39: 6.130315431 | G39: 6.237221248 | H39: 6.759871908
B40: 2.505936168e-06 | C40: 4.72450831 | D40: 4.927376213 | E40: 5.57178014 | F40: 6.108783413 | G40: 6.216184068 | H40: 6.741253934
B41: 2.624037301e-06 | C41: 4.696148321 | D41: 4.900004906 | E41: 5.547549351 | F41: 6.087169722 | G41: 6.195093796 | H41: 6.722722603
B42: 2.747704369e-06 | C42: 4.667308123 | D42: 4.872211065 | E42: 5.523079232 | F42: 6.065469372 | G42: 6.1739474 | H42: 6.704284425
B43: 2.877199687e-06 | C43: 4.638065131 | D43: 4.844042955 | E43: 5.498325457 | F43: 6.043560875 | G43: 6.152607959 | H43: 6.685727034
B44: 3.01279793e-06 | C44: 4.608168278 | D44: 4.815319099 | E44: 5.473327588 | F44: 6.021667996 | G44: 6.131336077 | H44: 6.667491142
B45: 3.154786722e-06 | C45: 4.57768411 | D45: 4.786078824 | E45: 5.448038504 | F45: 5.99967157 | G45: 6.109998183 | H45: 6.649372736
B46: 3.30346724e-06 | C46: 4.54657045 | D46: 4.756285144 | E46: 5.422437701 | F46: 5.977564832 | G46: 6.088590258 | H46: 6.631381231
B47: 3.459154855e-06 | C47: 4.514781218 | D47: 4.725897653 | E47: 5.396502798 | F47: 5.955340419 | G47: 6.067107943 | H47: 6.61352695
B48: 3.6221798e-06 | C48: 4.482265969 | D48: 4.694872119 | E48: 5.370209303 | F48: 5.932990289 | G48: 6.045546486 | H48: 6.595821228
B49: 3.792887875e-06 | C49: 4.448969347 | D49: 4.663160011 | E49: 5.343530352 | F49: 5.910505637 | G49: 6.023900694 | H49: 6.578276528
B50: 3.971641174e-06 | C50: 4.414830474 | D50: 4.630707951 | E50: 5.316436407 | F50: 5.887876788 | G50: 6.002164864 | H50: 6.56090657
B51: 4.158818856e-06 | C51: 4.379782222 | D51: 4.597457088 | E51: 5.288894898 | F51: 5.865093073 | G51: 5.980332708 | H51: 6.543726479
B52: 4.35481795e-06 | C52: 4.343750388 | D52: 4.563342362 | E52: 5.260869809 | F52: 5.842142681 | G52: 5.958397256 | H52: 6.526752953
B53: 4.560054197e-06 | C53: 4.306650841 | D53: 4.528290271 | E53: 5.232321403 | F53: 5.819014013 | G53: 5.936352535 | H53: 6.510007532
B54: 4.77496293e-06 | C54: 4.268392216 | D54: 4.492220661 | E54: 5.203205131 | F54: 5.795692189 | G54: 5.914189601 | H54: 6.49351028
B55: 5e-06 | C55: 4.228873819 | D55: 4.455045019 | E55: 5.173471183 | F55: 5.772159653 | G55: 5.891897347 | H55: 6.477281629
B56: 5.23564274e-06 | C56: 4.187981587 | D56: 4.416663278 | E56: 5.143063945 | F56: 5.748397833 | G56: 5.869464611 | H56: 6.461346636
B57: 5.482390981e-06 | C57: 4.145587519 | D57: 4.376963113 | E57: 5.111920883 | F57: 5.724385692 | G57: 5.846878654 | H57: 6.445733133
B58: 5.740768107e-06 | C58: 4.101547478 | D58: 4.335817998 | E58: 5.079971416 | F58: 5.700099265 | G58: 5.824124834 | H58: 6.430472064
B59: 6.011322173e-06 | C59: 4.055698583 | D59: 4.2930849 | E59: 5.047135553 | F59: 5.675511098 | G59: 5.801186207 | H59: 6.41559785
B60: 6.294627059e-06 | C60: 4.007856105 | D60: 4.248601523 | E60: 5.013322266 | F60: 5.650589551 | G60: 5.778043008 | H60: 6.401148798
B61: 6.591283693e-06 | C61: 3.957809759 | D61: 4.202183025 | E61: 4.97842752 | F61: 5.625297932 | G61: 5.754672014 | H61: 6.387167528
B62: 6.901921323e-06 | C62: 3.905319288 | D62: 4.153618083 | E62: 4.942331902 | F62: 5.599593418 | G62: 5.731045721 | H62: 6.373701426
B63: 7.227198854e-06 | C63: 3.850109201 | D63: 4.102664207 | E63: 4.904897754 | F63: 5.57342571 | G63: 5.707131301 | H63: 6.36080308
B64: 7.567806242e-06 | C64: 3.791862526 | D64: 4.049042163 | E64: 4.865965716 | F64: 5.546735343 | G64: 5.682889268 | H64: 6.348530681
B65: 7.924465962e-06 | C65: 3.730213477 | D65: 3.992429405 | E65: 4.825350589 | F65: 5.519451575 | G65: 5.658271772 | H65: 6.336948291
B66: 8.297934537e-06 | C66: 3.664738959 | D66: 3.932452437 | E66: 4.782836426 | F66: 5.49148975 | G66: 5.633220415 | H66: 6.326125888
B67: 8.689004144e-06 | C67: 3.594948998 | D67: 3.868678167 | E67: 4.738170823 | F67: 5.462748036 | G67: 5.607663478 | H67: 6.316138975
B68: 9.098504293e-06 | C68: 3.520276496 | D68: 3.800604582 | E68: 4.691058502 | F68: 5.433103436 | G68: 5.581512422 | H68: 6.307067468
B69: 9.52730359e-06 | C69: 3.440067261 | D69: 3.727651543 | E69: 4.641154556 | F69: 5.402407067 | G69: 5.554657569 | H69: 6.298993357
B70: 9.976311575e-06 | C70: 3.353572377 | D70: 3.649153494 | E70: 4.588058221 | F70: 5.370478827 | G70: 5.526962948 | H70: 6.29199643
B71: 1.044648065e-05 | C71: 3.25994685 | D71: 3.564357512 | E71: 4.531309028 | F71: 5.337101957 | G71: 5.498260543 | H71: 6.286146963

Sheet cyl_fitted_plot
A2: Compound | B2: logKow | C2: logKpw | D2: logR | E2: ξ | F2: τ | G2: ω | H2: fss
A3: 1 | B3: 4.46 | C3: =0.947*B3-0.017 -> 4.20662 | D3: =B3*'PRC model'!$B$36+'PRC model'!$C$36 -> 1.093259194 | E3: =10^C3*(Lo^2-Li^2)/10^D3/Lo^2 -> 300.7698893 | F3: ='PRC model'!$A$36*t*86400/10^D3/Lo^2 -> 2717.938846 | G3: =IF(E3>1,(1/E3-1/E3^2)^0.5,(1/E3^2-1/E3)^0.5) -> 0.05756515095 | H3: =IFERROR(IF(E3>1,1-(EXP((1/E3^2-G3^2)*F3)*((COS(G3/E3*F3*2)*(1-erfzR(1/E3*F3^0.5,G3*F3^0.5))-SIN(G3/E3*F3*2)*(-erfzI(1/E3*F3^0.5,G3*F3^0.5)))+(COS(G3/E3*F3*2)*(-erfzI(1/E3*F3^0.5,G3*F3^0.5))+SIN(G3/E3*F3*2)*(1-erfzR(1/E3*F3^0.5,G3*F3^0.5)))/E3/G3)),1-((1/E3+G3)*EXP((1/E3+G3)^2*F3)*ERFC((1/E3+G3)*F3^0.5)-(1/E3-G3)*EXP((1/E3-G3)^2*F3)*ERFC((1/E3-G3)*F3^0.5))/2/G3),1) -> 0.9979651254 | I3: =IFERROR(H3,1) -> 0.9979651254
A4: 4 | B4: 4.65 | C4: =0.947*B4-0.017 -> 4.38655 | D4: =B4*'PRC model'!$B$36+'PRC model'!$C$36 -> 1.433482876 | E4: 207.9412616 | F4: ='PRC model'!$A$36*t*86400/10^D4/Lo^2 -> 1241.698051 | G4: =IF(E4>1,(1/E4-1/E4^2)^0.5,(1/E4^2-1/E4)^0.5) -> 0.0691803686 | H4: =IFERROR(IF(E4>1,1-(EXP((1/E4^2-G4^2)*F4)*((COS(G4/E4*F4*2)*(1-erfzR(1/E4*F4^0.5,G4*F4^0.5))-SIN(G4/E4*F4*2)*(-erfzI(1/E4*F4^0.5,G4*F4^0.5)))+(COS(G4/E4*F4*2)*(-erfzI(1/E4*F4^0.5,G4*F4^0.5))+SIN(G4/E4*F4*2)*(1-erfzR(1/E4*F4^0.5,G4*F4^0.5)))/E4/G4)),1-((1/E4+G4)*EXP((1/E4+G4)^2*F4)*ERFC((1/E4+G4)*F4^0.5)-(1/E4-G4)*EXP((1/E4-G4)^2*F4)*ERFC((1/E4-G4)*F4^0.5))/2/G4),1) -> 0.992438653
A5: 10 | B5: 4.84 | C5: 4.56648 | D5: =B5*'PRC model'!$B$36+'PRC model'!$C$36 -> 1.773706557 | E5: 143.7629557 | F5: ='PRC model'!$A$36*t*86400/10^D5/Lo^2 -> 567.2732674 | G5: 0.08311143336 | H5: =IFERROR(IF(E5>1,1-(EXP((1/E5^2-G5^2)*F5)*((COS(G5/E5*F5*2)*(1-erfzR(1/E5*F5^0.5,G5*F5^0.5))-SIN(G5/E5*F5*2)*(-erfzI(1/E5*F5^0.5,G5*F5^0.5)))+(COS(G5/E5*F5*2)*(-erfzI(1/E5*F5^0.5,G5*F5^0.5))+SIN(G5/E5*F5*2)*(1-erfzR(1/E5*F5^0.5,G5*F5^0.5)))/E5/G5)),1-((1/E5+G5)*EXP((1/E5+G5)^2*F5)*ERFC((1/E5+G5)*F5^0.5)-(1/E5-G5)*EXP((1/E5-G5)^2*F5)*ERFC((1/E5-G5)*F5^0.5))/2/G5),1) -> 0.9721435521
A6: 9 | B6: 5.06 | C6: 4.77482 | D6: =B6*'PRC model'!$B$36+'PRC model'!$C$36 -> 2.167649767 | E6: 93.76565312 | F6: ='PRC model'!$A$36*t*86400/10^D6/Lo^2 -> 229.0071848 | G6: 0.1027187724 | H6: =IFERROR(IF(E6>1,1-(EXP((1/E6^2-G6^2)*F6)*((COS(G6/E6*F6*2)*(1-erfzR(1/E6*F6^0.5,G6*F6^0.5))-SIN(G6/E6*F6*2)*(-erfzI(1/E6*F6^0.5,G6*F6^0.5)))+(COS(G6/E6*F6*2)*(-erfzI(1/E6*F6^0.5,G6*F6^0.5))+SIN(G6/E6*F6*2)*(1-erfzR(1/E6*F6^0.5,G6*F6^0.5)))/E6/G6)),1-((1/E6+G6)*EXP((1/E6+G6)^2*F6)*ERFC((1/E6+G6)*F6^0.5)-(1/E6-G6)*EXP((1/E6-G6)^2*F6)*ERFC((1/E6-G6)*F6^0.5))/2/G6),1) -> 0.911029528
A7: 7 | B7: 5.07 | C7: 4.78429 | D7: =B7*'PRC model'!$B$36+'PRC model'!$C$36 -> 2.185556277 | E7: 91.96175981 | F7: ='PRC model'!$A$36*t*86400/10^D7/Lo^2 -> 219.7569396 | G7: 0.1037103628 | H7: =IFERROR(IF(E7>1,1-(EXP((1/E7^2-G7^2)*F7)*((COS(G7/E7*F7*2)*(1-erfzR(1/E7*F7^0.5,G7*F7^0.5))-SIN(G7/E7*F7*2)*(-erfzI(1/E7*F7^0.5,G7*F7^0.5)))+(COS(G7/E7*F7*2)*(-erfzI(1/E7*F7^0.5,G7*F7^0.5))+SIN(G7/E7*F7*2)*(1-erfzR(1/E7*F7^0.5,G7*F7^0.5)))/E7/G7)),1-((1/E7+G7)*EXP((1/E7+G7)^2*F7)*ERFC((1/E7+G7)*F7^0.5)-(1/E7-G7)*EXP((1/E7-G7)^2*F7)*ERFC((1/E7-G7)*F7^0.5))/2/G7),1) -> 0.9071217717
A8: 6 | B8: 5.06 | C8: 4.77482 | D8: =B8*'PRC model'!$B$36+'PRC model'!$C$36 -> 2.167649767 | E8: 93.76565312 | F8: ='PRC model'!$A$36*t*86400/10^D8/Lo^2 -> 229.0071848 | G8: 0.1027187724 | H8: =IFERROR(IF(E8>1,1-(EXP((1/E8^2-G8^2)*F8)*((COS(G8/E8*F8*2)*(1-erfzR(1/E8*F8^0.5,G8*F8^0.5))-SIN(G8/E8*F8*2)*(-erfzI(1/E8*F8^0.5,G8*F8^0.5)))+(COS(G8/E8*F8*2)*(-erfzI(1/E8*F8^0.5,G8*F8^0.5))+SIN(G8/E8*F8*2)*(1-erfzR(1/E8*F8^0.5,G8*F8^0.5)))/E8/G8)),1-((1/E8+G8)*EXP((1/E8+G8)^2*F8)*ERFC((1/E8+G8)*F8^0.5)-(1/E8-G8)*EXP((1/E8-G8)^2*F8)*ERFC((1/E8-G8)*F8^0.5))/2/G8),1) -> 0.911029528
A9: 8 | B9: 5.07 | C9: 4.78429 | D9: =B9*'PRC model'!$B$36+'PRC model'!$C$36 -> 2.185556277 | E9: 91.96175981 | F9: ='PRC model'!$A$36*t*86400/10^D9/Lo^2 -> 219.7569396 | G9: 0.1037103628 | H9: =IFERROR(IF(E9>1,1-(EXP((1/E9^2-G9^2)*F9)*((COS(G9/E9*F9*2)*(1-erfzR(1/E9*F9^0.5,G9*F9^0.5))-SIN(G9/E9*F9*2)*(-erfzI(1/E9*F9^0.5,G9*F9^0.5)))+(COS(G9/E9*F9*2)*(-erfzI(1/E9*F9^0.5,G9*F9^0.5))+SIN(G9/E9*F9*2)*(1-erfzR(1/E9*F9^0.5,G9*F9^0.5)))/E9/G9)),1-((1/E9+G9)*EXP((1/E9+G9)^2*F9)*ERFC((1/E9+G9)*F9^0.5)-(1/E9-G9)*EXP((1/E9-G9)^2*F9)*ERFC((1/E9-G9)*F9^0.5))/2/G9),1) -> 0.9071217717
A10: 5 | B10: 4.97 | C10: 4.68959 | D10: =B10*'PRC model'!$B$36+'PRC model'!$C$36 -> 2.006491181 | E10: 111.6792192 | F10: ='PRC model'!$A$36*t*86400/10^D10/Lo^2 -> 331.9003374 | G10: 0.09420211952 | H10: =IFERROR(IF(E10>1,1-(EXP((1/E10^2-G10^2)*F10)*((COS(G10/E10*F10*2)*(1-erfzR(1/E10*F10^0.5,G10*F10^0.5))-SIN(G10/E10*F10*2)*(-erfzI(1/E10*F10^0.5,G10*F10^0.5)))+(COS(G10/E10*F10*2)*(-erfzI(1/E10*F10^0.5,G10*F10^0.5))+SIN(G10/E10*F10*2)*(1-erfzR(1/E10*F10^0.5,G10*F10^0.5)))/E10/G10)),1-((1/E10+G10)*EXP((1/E10+G10)^2*F10)*ERFC((1/E10+G10)*F10^0.5)-(1/E10-G10)*EXP((1/E10-G10)^2*F10)*ERFC((1/E10-G10)*F10^0.5))/2/G10),1) -> 0.941784338
A11: 19 | B11: 5.02 | C11: 4.73694 | D11: =B11*'PRC model'!$B$36+'PRC model'!$C$36 -> 2.096023729 | E11: 101.3420817 | F11: ='PRC model'!$A$36*t*86400/10^D11/Lo^2 -> 270.0692548 | G11: 0.09884432323 | H11: =IFERROR(IF(E11>1,1-(EXP((1/E11^2-G11^2)*F11)*((COS(G11/E11*F11*2)*(1-erfzR(1/E11*F11^0.5,G11*F11^0.5))-SIN(G11/E11*F11*2)*(-erfzI(1/E11*F11^0.5,G11*F11^0.5)))+(COS(G11/E11*F11*2)*(-erfzI(1/E11*F11^0.5,G11*F11^0.5))+SIN(G11/E11*F11*2)*(1-erfzR(1/E11*F11^0.5,G11*F11^0.5)))/E11/G11)),1-((1/E11+G11)*EXP((1/E11+G11)^2*F11)*ERFC((1/E11+G11)*F11^0.5)-(1/E11-G11)*EXP((1/E11-G11)^2*F11)*ERFC((1/E11-G11)*F11^0.5))/2/G11),1) -> 0.9256918
A12: 18 | B12: 5.24 | C12: 4.94528 | D12: =B12*'PRC model'!$B$36+'PRC model'!$C$36 -> 2.489966939 | E12: 66.09774011 | F12: ='PRC model'!$A$36*t*86400/10^D12/Lo^2 -> 109.0264663 | G12: 0.1220664586 | H12: =IFERROR(IF(E12>1,1-(EXP((1/E12^2-G12^2)*F12)*((COS(G12/E12*F12*2)*(1-erfzR(1/E12*F12^0.5,G12*F12^0.5))-SIN(G12/E12*F12*2)*(-erfzI(1/E12*F12^0.5,G12*F12^0.5)))+(COS(G12/E12*F12*2)*(-erfzI(1/E12*F12^0.5,G12*F12^0.5))+SIN(G12/E12*F12*2)*(1-erfzR(1/E12*F12^0.5,G12*F12^0.5)))/E12/G12)),1-((1/E12+G12)*EXP((1/E12+G12)^2*F12)*ERFC((1/E12+G12)*F12^0.5)-(1/E12-G12)*EXP((1/E12-G12)^2*F12)*ERFC((1/E12-G12)*F12^0.5))/2/G12),1) -> 0.8277403978
A13: 17 | B13: 5.25 | C13: 4.95475 | D13: =B13*'PRC model'!$B$36+'PRC model'!$C$36 -> 2.507873449 | E13: 64.82613087 | F13: ='PRC model'!$A$36*t*86400/10^D13/Lo^2 -> 104.6225802 | G13: 0.1232392815 | H13: =IFERROR(IF(E13>1,1-(EXP((1/E13^2-G13^2)*F13)*((COS(G13/E13*F13*2)*(1-erfzR(1/E13*F13^0.5,G13*F13^0.5))-SIN(G13/E13*F13*2)*(-erfzI(1/E13*F13^0.5,G13*F13^0.5)))+(COS(G13/E13*F13*2)*(-erfzI(1/E13*F13^0.5,G13*F13^0.5))+SIN(G13/E13*F13*2)*(1-erfzR(1/E13*F13^0.5,G13*F13^0.5)))/E13/G13)),1-((1/E13+G13)*EXP((1/E13+G13)^2*F13)*ERFC((1/E13+G13)*F13^0.5)-(1/E13-G13)*EXP((1/E13-G13)^2*F13)*ERFC((1/E13-G13)*F13^0.5))/2/G13),1) -> 0.8224396507
A14: 27 | B14: 5.44 | C14: 5.13468 | D14: =B14*'PRC model'!$B$36+'PRC model'!$C$36 -> 2.84809713 | E14: 44.81840741 | F14: ='PRC model'!$A$36*t*86400/10^D14/Lo^2 -> 47.79712175 | G14: 0.1476970681 | H14: =IFERROR(IF(E14>1,1-(EXP((1/E14^2-G14^2)*F14)*((COS(G14/E14*F14*2)*(1-erfzR(1/E14*F14^0.5,G14*F14^0.5))-SIN(G14/E14*F14*2)*(-erfzI(1/E14*F14^0.5,G14*F14^0.5)))+(COS(G14/E14*F14*2)*(-erfzI(1/E14*F14^0.5,G14*F14^0.5))+SIN(G14/E14*F14*2)*(1-erfzR(1/E14*F14^0.5,G14*F14^0.5)))/E14/G14)),1-((1/E14+G14)*EXP((1/E14+G14)^2*F14)*ERFC((1/E14+G14)*F14^0.5)-(1/E14-G14)*EXP((1/E14-G14)^2*F14)*ERFC((1/E14-G14)*F14^0.5))/2/G14),1) -> 0.7149799388
A15: 24 | B15: 5.35 | C15: 5.04945 | D15: =B15*'PRC model'!$B$36+'PRC model'!$C$36 -> 2.686938544 | E15: 53.38079115 | F15: ='PRC model'!$A$36*t*86400/10^D15/Lo^2 -> 69.27241541 | G15: 0.135581683 | H15: =IFERROR(IF(E15>1,1-(EXP((1/E15^2-G15^2)*F15)*((COS(G15/E15*F15*2)*(1-erfzR(1/E15*F15^0.5,G15*F15^0.5))-SIN(G15/E15*F15*2)*(-erfzI(1/E15*F15^0.5,G15*F15^0.5)))+(COS(G15/E15*F15*2)*(-erfzI(1/E15*F15^0.5,G15*F15^0.5))+SIN(G15/E15*F15*2)*(1-erfzR(1/E15*F15^0.5,G15*F15^0.5)))/E15/G15)),1-((1/E15+G15)*EXP((1/E15+G15)^2*F15)*ERFC((1/E15+G15)*F15^0.5)-(1/E15-G15)*EXP((1/E15-G15)^2*F15)*ERFC((1/E15-G15)*F15^0.5))/2/G15),1) -> 0.7669949299
A16: 32 | B16: 5.44 | C16: 5.13468 | D16: =B16*'PRC model'!$B$36+'PRC model'!$C$36 -> 2.84809713 | E16: 44.81840741 | F16: ='PRC model'!$A$36*t*86400/10^D16/Lo^2 -> 47.79712175 | G16: 0.1476970681 | H16: =IFERROR(IF(E16>1,1-(EXP((1/E16^2-G16^2)*F16)*((COS(G16/E16*F16*2)*(1-erfzR(1/E16*F16^0.5,G16*F16^0.5))-SIN(G16/E16*F16*2)*(-erfzI(1/E16*F16^0.5,G16*F16^0.5)))+(COS(G16/E16*F16*2)*(-erfzI(1/E16*F16^0.5,G16*F16^0.5))+SIN(G16/E16*F16*2)*(1-erfzR(1/E16*F16^0.5,G16*F16^0.5)))/E16/G16)),1-((1/E16+G16)*EXP((1/E16+G16)^2*F16)*ERFC((1/E16+G16)*F16^0.5)-(1/E16-G16)*EXP((1/E16-G16)^2*F16)*ERFC((1/E16-G16)*F16^0.5))/2/G16),1) -> 0.7149799388
A17: 16 | B17: 5.16 | C17: 4.86952 | D17: =B17*'PRC model'!$B$36+'PRC model'!$C$36 -> 2.346714863 | E17: 77.21091294 | F17: ='PRC model'!$A$36*t*86400/10^D17/Lo^2 -> 151.6296081 | G17: 0.1130654445 | H17: =IFERROR(IF(E17>1,1-(EXP((1/E17^2-G17^2)*F17)*((COS(G17/E17*F17*2)*(1-erfzR(1/E17*F17^0.5,G17*F17^0.5))-SIN(G17/E17*F17*2)*(-erfzI(1/E17*F17^0.5,G17*F17^0.5)))+(COS(G17/E17*F17*2)*(-erfzI(1/E17*F17^0.5,G17*F17^0.5))+SIN(G17/E17*F17*2)*(1-erfzR(1/E17*F17^0.5,G17*F17^0.5)))/E17/G17)),1-((1/E17+G17)*EXP((1/E17+G17)^2*F17)*ERFC((1/E17+G17)*F17^0.5)-(1/E17-G17)*EXP((1/E17-G17)^2*F17)*ERFC((1/E17-G17)*F17^0.5))/2/G17),1) -> 0.8678931139
A18: 26 | B18: 5.66 | C18: 5.34302 | D18: =B18*'PRC model'!$B$36+'PRC model'!$C$36 -> 3.24204034 | E18: 29.23164192 | F18: ='PRC model'!$A$36*t*86400/10^D18/Lo^2 -> 19.29561099 | G18: 0.1817669243 | H18: =IFERROR(IF(E18>1,1-(EXP((1/E18^2-G18^2)*F18)*((COS(G18/E18*F18*2)*(1-erfzR(1/E18*F18^0.5,G18*F18^0.5))-SIN(G18/E18*F18*2)*(-erfzI(1/E18*F18^0.5,G18*F18^0.5)))+(COS(G18/E18*F18*2)*(-erfzI(1/E18*F18^0.5,G18*F18^0.5))+SIN(G18/E18*F18*2)*(1-erfzR(1/E18*F18^0.5,G18*F18^0.5)))/E18/G18)),1-((1/E18+G18)*EXP((1/E18+G18)^2*F18)*ERFC((1/E18+G18)*F18^0.5)-(1/E18-G18)*EXP((1/E18-G18)^2*F18)*ERFC((1/E18-G18)*F18^0.5))/2/G18),1) -> 0.591320509
A19: 25 | B19: 5.67 | C19: 5.35249 | D19: =B19*'PRC model'!$B$36+'PRC model'!$C$36 -> 3.25994685 | E19: 28.66927434 | F19: ='PRC model'!$A$36*t*86400/10^D19/Lo^2 -> 18.51620692 | G19: 0.1834772339 | H19: =IFERROR(IF(E19>1,1-(EXP((1/E19^2-G19^2)*F19)*((COS(G19/E19*F19*2)*(1-erfzR(1/E19*F19^0.5,G19*F19^0.5))-SIN(G19/E19*F19*2)*(-erfzI(1/E19*F19^0.5,G19*F19^0.5)))+(COS(G19/E19*F19*2)*(-erfzI(1/E19*F19^0.5,G19*F19^0.5))+SIN(G19/E19*F19*2)*(1-erfzR(1/E19*F19^0.5,G19*F19^0.5)))/E19/G19)),1-((1/E19+G19)*EXP((1/E19+G19)^2*F19)*ERFC((1/E19+G19)*F19^0.5)-(1/E19-G19)*EXP((1/E19-G19)^2*F19)*ERFC((1/E19-G19)*F19^0.5))/2/G19),1) -> 0.5860572366
A20: 31 | B20: 5.67 | C20: 5.35249 | D20: =B20*'PRC model'!$B$36+'PRC model'!$C$36 -> 3.25994685 | E20: 28.66927434 | F20: ='PRC model'!$A$36*t*86400/10^D20/Lo^2 -> 18.51620692 | G20: 0.1834772339 | H20: =IFERROR(IF(E20>1,1-(EXP((1/E20^2-G20^2)*F20)*((COS(G20/E20*F20*2)*(1-erfzR(1/E20*F20^0.5,G20*F20^0.5))-SIN(G20/E20*F20*2)*(-erfzI(1/E20*F20^0.5,G20*F20^0.5)))+(COS(G20/E20*F20*2)*(-erfzI(1/E20*F20^0.5,G20*F20^0.5))+SIN(G20/E20*F20*2)*(1-erfzR(1/E20*F20^0.5,G20*F20^0.5)))/E20/G20)),1-((1/E20+G20)*EXP((1/E20+G20)^2*F20)*ERFC((1/E20+G20)*F20^0.5)-(1/E20-G20)*EXP((1/E20-G20)^2*F20)*ERFC((1/E20-G20)*F20^0.5))/2/G20),1) -> 0.5860572366
A21: 28 | B21: 5.67 | C21: 5.35249 | D21: =B21*'PRC model'!$B$36+'PRC model'!$C$36 -> 3.25994685 | E21: 28.66927434 | F21: ='PRC model'!$A$36*t*86400/10^D21/Lo^2 -> 18.51620692 | G21: 0.1834772339 | H21: =IFERROR(IF(E21>1,1-(EXP((1/E21^2-G21^2)*F21)*((COS(G21/E21*F21*2)*(1-erfzR(1/E21*F21^0.5,G21*F21^0.5))-SIN(G21/E21*F21*2)*(-erfzI(1/E21*F21^0.5,G21*F21^0.5)))+(COS(G21/E21*F21*2)*(-erfzI(1/E21*F21^0.5,G21*F21^0.5))+SIN(G21/E21*F21*2)*(1-erfzR(1/E21*F21^0.5,G21*F21^0.5)))/E21/G21)),1-((1/E21+G21)*EXP((1/E21+G21)^2*F21)*ERFC((1/E21+G21)*F21^0.5)-(1/E21-G21)*EXP((1/E21-G21)^2*F21)*ERFC((1/E21-G21)*F21^0.5))/2/G21),1) -> 0.5860572366
A22: 20 | B22: 5.57 | C22: 5.25779 | D22: =B22*'PRC model'!$B$36+'PRC model'!$C$36 -> 3.080881754 | E22: 34.81623428 | F22: ='PRC model'!$A$36*t*86400/10^D22/Lo^2 -> 27.96514792 | G22: 0.1670247482 | H22: =IFERROR(IF(E22>1,1-(EXP((1/E22^2-G22^2)*F22)*((COS(G22/E22*F22*2)*(1-erfzR(1/E22*F22^0.5,G22*F22^0.5))-SIN(G22/E22*F22*2)*(-erfzI(1/E22*F22^0.5,G22*F22^0.5)))+(COS(G22/E22*F22*2)*(-erfzI(1/E22*F22^0.5,G22*F22^0.5))+SIN(G22/E22*F22*2)*(1-erfzR(1/E22*F22^0.5,G22*F22^0.5)))/E22/G22)),1-((1/E22+G22)*EXP((1/E22+G22)^2*F22)*ERFC((1/E22+G22)*F22^0.5)-(1/E22-G22)*EXP((1/E22-G22)^2*F22)*ERFC((1/E22-G22)*F22^0.5))/2/G22),1) -> 0.640400124
A23: 22 | B23: 5.58 | C23: 5.26726 | D23: =B23*'PRC model'!$B$36+'PRC model'!$C$36 -> 3.098788264 | E23: 34.14642854 | F23: ='PRC model'!$A$36*t*86400/10^D23/Lo^2 -> 26.83555684 | G23: 0.1686060228 | H23: =IFERROR(IF(E23>1,1-(EXP((1/E23^2-G23^2)*F23)*((COS(G23/E23*F23*2)*(1-erfzR(1/E23*F23^0.5,G23*F23^0.5))-SIN(G23/E23*F23*2)*(-erfzI(1/E23*F23^0.5,G23*F23^0.5)))+(COS(G23/E23*F23*2)*(-erfzI(1/E23*F23^0.5,G23*F23^0.5))+SIN(G23/E23*F23*2)*(1-erfzR(1/E23*F23^0.5,G23*F23^0.5)))/E23/G23)),1-((1/E23+G23)*EXP((1/E23+G23)^2*F23)*ERFC((1/E23+G23)*F23^0.5)-(1/E23-G23)*EXP((1/E23-G23)^2*F23)*ERFC((1/E23-G23)*F23^0.5))/2/G23),1) -> 0.6348111135
A24: 52 | B24: 5.84 | C24: 5.51348 | D24: =B24*'PRC model'!$B$36+'PRC model'!$C$36 -> 3.564357512 | E24: 20.60611115 | F24: ='PRC model'!$A$36*t*86400/10^D24/Lo^2 -> 9.186315629 | G24: 0.2148818291 | H24: =IFERROR(IF(E24>1,1-(EXP((1/E24^2-G24^2)*F24)*((COS(G24/E24*F24*2)*(1-erfzR(1/E24*F24^0.5,G24*F24^0.5))-SIN(G24/E24*F24*2)*(-erfzI(1/E24*F24^0.5,G24*F24^0.5)))+(COS(G24/E24*F24*2)*(-erfzI(1/E24*F24^0.5,G24*F24^0.5))+SIN(G24/E24*F24*2)*(1-erfzR(1/E24*F24^0.5,G24*F24^0.5)))/E24/G24)),1-((1/E24+G24)*EXP((1/E24+G24)^2*F24)*ERFC((1/E24+G24)*F24^0.5)-(1/E24-G24)*EXP((1/E24-G24)^2*F24)*ERFC((1/E24-G24)*F24^0.5))/2/G24),1) -> 0.503708823
A25: 47 | B25: 5.85 | C25: 5.52295 | D25: =B25*'PRC model'!$B$36+'PRC model'!$C$36 -> 3.582264022 | E25: 20.20968427 | F25: ='PRC model'!$A$36*t*86400/10^D25/Lo^2 -> 8.815254469 | G25: 0.2168705519 | H25: =IFERROR(IF(E25>1,1-(EXP((1/E25^2-G25^2)*F25)*((COS(G25/E25*F25*2)*(1-erfzR(1/E25*F25^0.5,G25*F25^0.5))-SIN(G25/E25*F25*2)*(-erfzI(1/E25*F25^0.5,G25*F25^0.5)))+(COS(G25/E25*F25*2)*(-erfzI(1/E25*F25^0.5,G25*F25^0.5))+SIN(G25/E25*F25*2)*(1-erfzR(1/E25*F25^0.5,G25*F25^0.5)))/E25/G25)),1-((1/E25+G25)*EXP((1/E25+G25)^2*F25)*ERFC((1/E25+G25)*F25^0.5)-(1/E25-G25)*EXP((1/E25-G25)^2*F25)*ERFC((1/E25-G25)*F25^0.5))/2/G25),1) -> 0.4993160077
A26: 44 | B26: 5.75 | C26: 5.42825 | D26: =B26*'PRC model'!$B$36+'PRC model'!$C$36 -> 3.403198926 | E26: 24.54282915 | F26: ='PRC model'!$A$36*t*86400/10^D26/Lo^2 -> 13.31373625 | G26: 0.1976991041 | H26: =IFERROR(IF(E26>1,1-(EXP((1/E26^2-G26^2)*F26)*((COS(G26/E26*F26*2)*(1-erfzR(1/E26*F26^0.5,G26*F26^0.5))-SIN(G26/E26*F26*2)*(-erfzI(1/E26*F26^0.5,G26*F26^0.5)))+(COS(G26/E26*F26*2)*(-erfzI(1/E26*F26^0.5,G26*F26^0.5))+SIN(G26/E26*F26*2)*(1-erfzR(1/E26*F26^0.5,G26*F26^0.5)))/E26/G26)),1-((1/E26+G26)*EXP((1/E26+G26)^2*F26)*ERFC((1/E26+G26)*F26^0.5)-(1/E26-G26)*EXP((1/E26-G26)^2*F26)*ERFC((1/E26-G26)*F26^0.5))/2/G26),1) -> 0.5455535841
A27: 42 | B27: 5.76 | C27: 5.43772 | D27: =B27*'PRC model'!$B$36+'PRC model'!$C$36 -> 3.421105436 | E27: 24.07066644 | F27: ='PRC model'!$A$36*t*86400/10^D27/Lo^2 -> 12.77595694 | G27: 0.1995455078 | H27: =IFERROR(IF(E27>1,1-(EXP((1/E27^2-G27^2)*F27)*((COS(G27/E27*F27*2)*(1-erfzR(1/E27*F27^0.5,G27*F27^0.5))-SIN(G27/E27*F27*2)*(-erfzI(1/E27*F27^0.5,G27*F27^0.5)))+(COS(G27/E27*F27*2)*(-erfzI(1/E27*F27^0.5,G27*F27^0.5))+SIN(G27/E27*F27*2)*(1-erfzR(1/E27*F27^0.5,G27*F27^0.5)))/E27/G27)),1-((1/E27+G27)*EXP((1/E27+G27)^2*F27)*ERFC((1/E27+G27)*F27^0.5)-(1/E27-G27)*EXP((1/E27-G27)^2*F27)*ERFC((1/E27-G27)*F27^0.5))/2/G27),1) -> 0.5407029051
A28: 71 | B28: 5.98 | C28: 5.64606 | D28: =B28*'PRC model'!$B$36+'PRC model'!$C$36 -> 3.815048646 | E28: 15.69946686 | F28: ='PRC model'!$A$36*t*86400/10^D28/Lo^2 -> 5.157630547 | G28: 0.2442113741 | H28: =IFERROR(IF(E28>1,1-(EXP((1/E28^2-G28^2)*F28)*((COS(G28/E28*F28*2)*(1-erfzR(1/E28*F28^0.5,G28*F28^0.5))-SIN(G28/E28*F28*2)*(-erfzI(1/E28*F28^0.5,G28*F28^0.5)))+(COS(G28/E28*F28*2)*(-erfzI(1/E28*F28^0.5,G28*F28^0.5))+SIN(G28/E28*F28*2)*(1-erfzR(1/E28*F28^0.5,G28*F28^0.5)))/E28/G28)),1-((1/E28+G28)*EXP((1/E28+G28)^2*F28)*ERFC((1/E28+G28)*F28^0.5)-(1/E28-G28)*EXP((1/E28-G28)^2*F28)*ERFC((1/E28-G28)*F28^0.5))/2/G28),1) -> 0.44695973
A29: 41 | B29: 5.69 | C29: 5.37143 | D29: =B29*'PRC model'!$B$36+'PRC model'!$C$36 -> 3.295759869 | E29: 27.57678806 | F29: ='PRC model'!$A$36*t*86400/10^D29/Lo^2 -> 17.0505741 | G29: 0.1869422929 | H29: =IFERROR(IF(E29>1,1-(EXP((1/E29^2-G29^2)*F29)*((COS(G29/E29*F29*2)*(1-erfzR(1/E29*F29^0.5,G29*F29^0.5))-SIN(G29/E29*F29*2)*(-erfzI(1/E29*F29^0.5,G29*F29^0.5)))+(COS(G29/E29*F29*2)*(-erfzI(1/E29*F29^0.5,G29*F29^0.5))+SIN(G29/E29*F29*2)*(1-erfzR(1/E29*F29^0.5,G29*F29^0.5)))/E29/G29)),1-((1/E29+G29)*EXP((1/E29+G29)^2*F29)*ERFC((1/E29+G29)*F29^0.5)-(1/E29-G29)*EXP((1/E29-G29)^2*F29)*ERFC((1/E29-G29)*F29^0.5))/2/G29),1) -> 0.575658843
A30: 103 | B30: 6.22 | C30: 5.87334 | D30: =B30*'PRC model'!$B$36+'PRC model'!$C$36 -> 4.244804875 | E30: 9.849375056 | F30: ='PRC model'!$A$36*t*86400/10^D30/Lo^2 -> 1.917317341 | G30: 0.3020282912 | H30: =IFERROR(IF(E30>1,1-(EXP((1/E30^2-G30^2)*F30)*((COS(G30/E30*F30*2)*(1-erfzR(1/E30*F30^0.5,G30*F30^0.5))-SIN(G30/E30*F30*2)*(-erfzI(1/E30*F30^0.5,G30*F30^0.5)))+(COS(G30/E30*F30*2)*(-erfzI(1/E30*F30^0.5,G30*F30^0.5))+SIN(G30/E30*F30*2)*(1-erfzR(1/E30*F30^0.5,G30*F30^0.5)))/E30/G30)),1-((1/E30+G30)*EXP((1/E30+G30)^2*F30)*ERFC((1/E30+G30)*F30^0.5)-(1/E30-G30)*EXP((1/E30-G30)^2*F30)*ERFC((1/E30-G30)*F30^0.5))/2/G30),1) -> 0.3722685401
A31: 40 | B31: 5.66 | C31: 5.34302 | D31: =B31*'PRC model'!$B$36+'PRC model'!$C$36 -> 3.24204034 | E31: 29.23164192 | F31: ='PRC model'!$A$36*t*86400/10^D31/Lo^2 -> 19.29561099 | G31: 0.1817669243 | H31: =IFERROR(IF(E31>1,1-(EXP((1/E31^2-G31^2)*F31)*((COS(G31/E31*F31*2)*(1-erfzR(1/E31*F31^0.5,G31*F31^0.5))-SIN(G31/E31*F31*2)*(-erfzI(1/E31*F31^0.5,G31*F31^0.5)))+(COS(G31/E31*F31*2)*(-erfzI(1/E31*F31^0.5,G31*F31^0.5))+SIN(G31/E31*F31*2)*(1-erfzR(1/E31*F31^0.5,G31*F31^0.5)))/E31/G31)),1-((1/E31+G31)*EXP((1/E31+G31)^2*F31)*ERFC((1/E31+G31)*F31^0.5)-(1/E31-G31)*EXP((1/E31-G31)^2*F31)*ERFC((1/E31-G31)*F31^0.5))/2/G31),1) -> 0.591320509
A32: 74 | B32: 6.2 | C32: 5.8544 | D32: =B32*'PRC model'!$B$36+'PRC model'!$C$36 -> 4.208991856 | E32: 10.23956941 | F32: ='PRC model'!$A$36*t*86400/10^D32/Lo^2 -> 2.082126057 | G32: 0.2968548657 | H32: =IFERROR(IF(E32>1,1-(EXP((1/E32^2-G32^2)*F32)*((COS(G32/E32*F32*2)*(1-erfzR(1/E32*F32^0.5,G32*F32^0.5))-SIN(G32/E32*F32*2)*(-erfzI(1/E32*F32^0.5,G32*F32^0.5)))+(COS(G32/E32*F32*2)*(-erfzI(1/E32*F32^0.5,G32*F32^0.5))+SIN(G32/E32*F32*2)*(1-erfzR(1/E32*F32^0.5,G32*F32^0.5)))/E32/G32)),1-((1/E32+G32)*EXP((1/E32+G32)^2*F32)*ERFC((1/E32+G32)*F32^0.5)-(1/E32-G32)*EXP((1/E32-G32)^2*F32)*ERFC((1/E32-G32)*F32^0.5))/2/G32),1) -> 0.3775010483
A33: 70 | B33: 6.2 | C33: 5.8544 | D33: =B33*'PRC model'!$B$36+'PRC model'!$C$36 -> 4.208991856 | E33: 10.23956941 | F33: ='PRC model'!$A$36*t*86400/10^D33/Lo^2 -> 2.082126057 | G33: 0.2968548657 | H33: =IFERROR(IF(E33>1,1-(EXP((1/E33^2-G33^2)*F33)*((COS(G33/E33*F33*2)*(1-erfzR(1/E33*F33^0.5,G33*F33^0.5))-SIN(G33/E33*F33*2)*(-erfzI(1/E33*F33^0.5,G33*F33^0.5)))+(COS(G33/E33*F33*2)*(-erfzI(1/E33*F33^0.5,G33*F33^0.5))+SIN(G33/E33*F33*2)*(1-erfzR(1/E33*F33^0.5,G33*F33^0.5)))/E33/G33)),1-((1/E33+G33)*EXP((1/E33+G33)^2*F33)*ERFC((1/E33+G33)*F33^0.5)-(1/E33-G33)*EXP((1/E33-G33)^2*F33)*ERFC((1/E33-G33)*F33^0.5))/2/G33),1) -> 0.3775010483
A34: 66 | B34: 6.2 | C34: 5.8544 | D34: =B34*'PRC model'!$B$36+'PRC model'!$C$36 -> 4.208991856 | E34: 10.23956941 | F34: ='PRC model'!$A$36*t*86400/10^D34/Lo^2 -> 2.082126057 | G34: 0.2968548657 | H34: =IFERROR(IF(E34>1,1-(EXP((1/E34^2-G34^2)*F34)*((COS(G34/E34*F34*2)*(1-erfzR(1/E34*F34^0.5,G34*F34^0.5))-SIN(G34/E34*F34*2)*(-erfzI(1/E34*F34^0.5,G34*F34^0.5)))+(COS(G34/E34*F34*2)*(-erfzI(1/E34*F34^0.5,G34*F34^0.5))+SIN(G34/E34*F34*2)*(1-erfzR(1/E34*F34^0.5,G34*F34^0.5)))/E34/G34)),1-((1/E34+G34)*EXP((1/E34+G34)^2*F34)*ERFC((1/E34+G34)*F34^0.5)-(1/E34-G34)*EXP((1/E34-G34)^2*F34)*ERFC((1/E34-G34)*F34^0.5))/2/G34),1) -> 0.3775010483
A35: 95 | B35: 6.13 | C35: 5.78811 | D35: =B35*'PRC model'!$B$36+'PRC model'!$C$36 -> 4.083646289 | E35: =10^C35*(Lo^2-Li^2)/10^D35/Lo^2 -> 11.73106014 | F35: ='PRC model'!$A$36*t*86400/10^D35/Lo^2 -> 2.778769902 | G35: 0.2792441304 | H35: =IFERROR(IF(E35>1,1-(EXP((1/E35^2-G35^2)*F35)*((COS(G35/E35*F35*2)*(1-erfzR(1/E35*F35^0.5,G35*F35^0.5))-SIN(G35/E35*F35*2)*(-erfzI(1/E35*F35^0.5,G35*F35^0.5)))+(COS(G35/E35*F35*2)*(-erfzI(1/E35*F35^0.5,G35*F35^0.5))+SIN(G35/E35*F35*2)*(1-erfzR(1/E35*F35^0.5,G35*F35^0.5)))/E35/G35)),1-((1/E35+G35)*EXP((1/E35+G35)^2*F35)*ERFC((1/E35+G35)*F35^0.5)-(1/E35-G35)*EXP((1/E35-G35)^2*F35)*ERFC((1/E35-G35)*F35^0.5))/2/G35),1) -> 0.3971619149
A36: 93 | B36: 6.04 | C36: 5.70288 | D36: =B36*'PRC model'!$B$36+'PRC model'!$C$36 -> 3.922487703 | E36: 13.9722339 | F36: ='PRC model'!$A$36*t*86400/10^D36/Lo^2 -> 4.027273942 | G36: 0.2577754408 | H36: =IFERROR(IF(E36>1,1-(EXP((1/E36^2-G36^2)*F36)*((COS(G36/E36*F36*2)*(1-erfzR(1/E36*F36^0.5,G36*F36^0.5))-SIN(G36/E36*F36*2)*(-erfzI(1/E36*F36^0.5,G36*F36^0.5)))+(COS(G36/E36*F36*2)*(-erfzI(1/E36*F36^0.5,G36*F36^0.5))+SIN(G36/E36*F36*2)*(1-erfzR(1/E36*F36^0.5,G36*F36^0.5)))/E36/G36)),1-((1/E36+G36)*EXP((1/E36+G36)^2*F36)*ERFC((1/E36+G36)*F36^0.5)-(1/E36-G36)*EXP((1/E36-G36)^2*F36)*ERFC((1/E36-G36)*F36^0.5))/2/G36),1) -> 0.4257251142
A37: 56 | B37: 6.11 | C37: 5.76917 | D37: =B37*'PRC model'!$B$36+'PRC model'!$C$36 -> 4.04783327 | E37: 12.19579963 | F37: ='PRC model'!$A$36*t*86400/10^D37/Lo^2 -> 3.017627336 | G37: 0.2743577788 | H37: =IFERROR(IF(E37>1,1-(EXP((1/E37^2-G37^2)*F37)*((COS(G37/E37*F37*2)*(1-erfzR(1/E37*F37^0.5,G37*F37^0.5))-SIN(G37/E37*F37*2)*(-erfzI(1/E37*F37^0.5,G37*F37^0.5)))+(COS(G37/E37*F37*2)*(-erfzI(1/E37*F37^0.5,G37*F37^0.5))+SIN(G37/E37*F37*2)*(1-erfzR(1/E37*F37^0.5,G37*F37^0.5)))/E37/G37)),1-((1/E37+G37)*EXP((1/E37+G37)^2*F37)*ERFC((1/E37+G37)*F37^0.5)-(1/E37-G37)*EXP((1/E37-G37)^2*F37)*ERFC((1/E37-G37)*F37^0.5))/2/G37),1) -> 0.4031803235
A38: 60 | B38: 6.11 | C38: 5.76917 | D38: =B38*'PRC model'!$B$36+'PRC model'!$C$36 -> 4.04783327 | E38: 12.19579963 | F38: ='PRC model'!$A$36*t*86400/10^D38/Lo^2 -> 3.017627336 | G38: 0.2743577788 | H38: =IFERROR(IF(E38>1,1-(EXP((1/E38^2-G38^2)*F38)*((COS(G38/E38*F38*2)*(1-erfzR(1/E38*F38^0.5,G38*F38^0.5))-SIN(G38/E38*F38*2)*(-erfzI(1/E38*F38^0.5,G38*F38^0.5)))+(COS(G38/E38*F38*2)*(-erfzI(1/E38*F38^0.5,G38*F38^0.5))+SIN(G38/E38*F38*2)*(1-erfzR(1/E38*F38^0.5,G38*F38^0.5)))/E38/G38)),1-((1/E38+G38)*EXP((1/E38+G38)^2*F38)*ERFC((1/E38+G38)*F38^0.5)-(1/E38-G38)*EXP((1/E38-G38)^2*F38)*ERFC((1/E38-G38)*F38^0.5))/2/G38),1) -> 0.4031803235
A39: 92 | B39: 6.35 | C39: 5.99645 | D39: =B39*'PRC model'!$B$36+'PRC model'!$C$36 -> 4.477589499 | E39: 7.651279222 | F39: ='PRC model'!$A$36*t*86400/10^D39/Lo^2 -> 1.121784348 | G39: 0.3370687875 | H39: =IFERROR(IF(E39>1,1-(EXP((1/E39^2-G39^2)*F39)*((COS(G39/E39*F39*2)*(1-erfzR(1/E39*F39^0.5,G39*F39^0.5))-SIN(G39/E39*F39*2)*(-erfzI(1/E39*F39^0.5,G39*F39^0.5)))+(COS(G39/E39*F39*2)*(-erfzI(1/E39*F39^0.5,G39*F39^0.5))+SIN(G39/E39*F39*2)*(1-erfzR(1/E39*F39^0.5,G39*F39^0.5)))/E39/G39)),1-((1/E39+G39)*EXP((1/E39+G39)^2*F39)*ERFC((1/E39+G39)*F39^0.5)-(1/E39-G39)*EXP((1/E39-G39)^2*F39)*ERFC((1/E39-G39)*F39^0.5))/2/G39),1) -> 0.3420626698
A40: 84 | B40: 6.04 | C40: 5.70288 | D40: =B40*'PRC model'!$B$36+'PRC model'!$C$36 -> 3.922487703 | E40: 13.9722339 | F40: ='PRC model'!$A$36*t*86400/10^D40/Lo^2 -> 4.027273942 | G40: 0.2577754408 | H40: =IFERROR(IF(E40>1,1-(EXP((1/E40^2-G40^2)*F40)*((COS(G40/E40*F40*2)*(1-erfzR(1/E40*F40^0.5,G40*F40^0.5))-SIN(G40/E40*F40*2)*(-erfzI(1/E40*F40^0.5,G40*F40^0.5)))+(COS(G40/E40*F40*2)*(-erfzI(1/E40*F40^0.5,G40*F40^0.5))+SIN(G40/E40*F40*2)*(1-erfzR(1/E40*F40^0.5,G40*F40^0.5)))/E40/G40)),1-((1/E40+G40)*EXP((1/E40+G40)^2*F40)*ERFC((1/E40+G40)*F40^0.5)-(1/E40-G40)*EXP((1/E40-G40)^2*F40)*ERFC((1/E40-G40)*F40^0.5))/2/G40),1) -> 0.4257251142
A41: 101 | B41: 6.38 | C41: 6.02486 | D41: =B41*'PRC model'!$B$36+'PRC model'!$C$36 -> 4.531309028 | E41: 7.218127058 | F41: ='PRC model'!$A$36*t*86400/10^D41/Lo^2 -> 0.9912651717 | G41: 0.3454659697 | H41: =IFERROR(IF(E41>1,1-(EXP((1/E41^2-G41^2)*F41)*((COS(G41/E41*F41*2)*(1-erfzR(1/E41*F41^0.5,G41*F41^0.5))-SIN(G41/E41*F41*2)*(-erfzI(1/E41*F41^0.5,G41*F41^0.5)))+(COS(G41/E41*F41*2)*(-erfzI(1/E41*F41^0.5,G41*F41^0.5))+SIN(G41/E41*F41*2)*(1-erfzR(1/E41*F41^0.5,G41*F41^0.5)))/E41/G41)),1-((1/E41+G41)*EXP((1/E41+G41)^2*F41)*ERFC((1/E41+G41)*F41^0.5)-(1/E41-G41)*EXP((1/E41-G41)^2*F41)*ERFC((1/E41-G41)*F41^0.5))/2/G41),1) -> 0.3359546992
A42: 99 | B42: 6.39 | C42: 6.03433 | D42: =B42*'PRC model'!$B$36+'PRC model'!$C$36 -> 4.549215537 | E42: 7.079262446 | F42: ='PRC model'!$A$36*t*86400/10^D42/Lo^2 -> 0.9512251797 | G42: 0.3482871354 | H42: =IFERROR(IF(E42>1,1-(EXP((1/E42^2-G42^2)*F42)*((COS(G42/E42*F42*2)*(1-erfzR(1/E42*F42^0.5,G42*F42^0.5))-SIN(G42/E42*F42*2)*(-erfzI(1/E42*F42^0.5,G42*F42^0.5)))+(COS(G42/E42*F42*2)*(-erfzI(1/E42*F42^0.5,G42*F42^0.5))+SIN(G42/E42*F42*2)*(1-erfzR(1/E42*F42^0.5,G42*F42^0.5)))/E42/G42)),1-((1/E42+G42)*EXP((1/E42+G42)^2*F42)*ERFC((1/E42+G42)*F42^0.5)-(1/E42-G42)*EXP((1/E42-G42)^2*F42)*ERFC((1/E42-G42)*F42^0.5))/2/G42),1) -> 0.3339848198
A43: 119 | B43: 6.58 | C43: 6.21426 | D43: =B43*'PRC model'!$B$36+'PRC model'!$C$36 -> 4.889439219 | E43: 4.894342208 | F43: ='PRC model'!$A$36*t*86400/10^D43/Lo^2 -> 0.4345699144 | G43: 0.4032020433 | H43: =IFERROR(IF(E43>1,1-(EXP((1/E43^2-G43^2)*F43)*((COS(G43/E43*F43*2)*(1-erfzR(1/E43*F43^0.5,G43*F43^0.5))-SIN(G43/E43*F43*2)*(-erfzI(1/E43*F43^0.5,G43*F43^0.5)))+(COS(G43/E43*F43*2)*(-erfzI(1/E43*F43^0.5,G43*F43^0.5))+SIN(G43/E43*F43*2)*(1-erfzR(1/E43*F43^0.5,G43*F43^0.5)))/E43/G43)),1-((1/E43+G43)*EXP((1/E43+G43)^2*F43)*ERFC((1/E43+G43)*F43^0.5)-(1/E43-G43)*EXP((1/E43-G43)^2*F43)*ERFC((1/E43-G43)*F43^0.5))/2/G43),1) -> 0.3021349498
A44: 83 | B44: 6.26 | C44: 5.91122 | D44: =B44*'PRC model'!$B$36+'PRC model'!$C$36 -> 4.316430913 | E44: 9.113026583 | F44: ='PRC model'!$A$36*t*86400/10^D44/Lo^2 -> 1.625803155 | G44: 0.3125566996 | H44: =IFERROR(IF(E44>1,1-(EXP((1/E44^2-G44^2)*F44)*((COS(G44/E44*F44*2)*(1-erfzR(1/E44*F44^0.5,G44*F44^0.5))-SIN(G44/E44*F44*2)*(-erfzI(1/E44*F44^0.5,G44*F44^0.5)))+(COS(G44/E44*F44*2)*(-erfzI(1/E44*F44^0.5,G44*F44^0.5))+SIN(G44/E44*F44*2)*(1-erfzR(1/E44*F44^0.5,G44*F44^0.5)))/E44/G44)),1-((1/E44+G44)*EXP((1/E44+G44)^2*F44)*ERFC((1/E44+G44)*F44^0.5)-(1/E44-G44)*EXP((1/E44-G44)^2*F44)*ERFC((1/E44-G44)*F44^0.5))/2/G44),1) -> 0.3622904353
A45: 87 | B45: 6.29 | C45: 5.93963 | D45: =B45*'PRC model'!$B$36+'PRC model'!$C$36 -> 4.370150442 | E45: 8.597122371 | F45: ='PRC model'!$A$36*t*86400/10^D45/Lo^2 -> 1.436641585 | G45: 0.3206058573 | H45: =IFERROR(IF(E45>1,1-(EXP((1/E45^2-G45^2)*F45)*((COS(G45/E45*F45*2)*(1-erfzR(1/E45*F45^0.5,G45*F45^0.5))-SIN(G45/E45*F45*2)*(-erfzI(1/E45*F45^0.5,G45*F45^0.5)))+(COS(G45/E45*F45*2)*(-erfzI(1/E45*F45^0.5,G45*F45^0.5))+SIN(G45/E45*F45*2)*(1-erfzR(1/E45*F45^0.5,G45*F45^0.5)))/E45/G45)),1-((1/E45+G45)*EXP((1/E45+G45)^2*F45)*ERFC((1/E45+G45)*F45^0.5)-(1/E45-G45)*EXP((1/E45-G45)^2*F45)*ERFC((1/E45-G45)*F45^0.5))/2/G45),1) -> 0.355216693
A46: 81 | B46: 6.36 | C46: 6.00592 | D46: =B46*'PRC model'!$B$36+'PRC model'!$C$36 -> 4.495496009 | E46: 7.504081491 | F46: ='PRC model'!$A$36*t*86400/10^D46/Lo^2 -> 1.076472319 | G46: 0.3398563942 | H46: =IFERROR(IF(E46>1,1-(EXP((1/E46^2-G46^2)*F46)*((COS(G46/E46*F46*2)*(1-erfzR(1/E46*F46^0.5,G46*F46^0.5))-SIN(G46/E46*F46*2)*(-erfzI(1/E46*F46^0.5,G46*F46^0.5)))+(COS(G46/E46*F46*2)*(-erfzI(1/E46*F46^0.5,G46*F46^0.5))+SIN(G46/E46*F46*2)*(1-erfzR(1/E46*F46^0.5,G46*F46^0.5)))/E46/G46)),1-((1/E46+G46)*EXP((1/E46+G46)^2*F46)*ERFC((1/E46+G46)*F46^0.5)-(1/E46-G46)*EXP((1/E46-G46)^2*F46)*ERFC((1/E46-G46)*F46^0.5))/2/G46),1) -> 0.339993122
A47: 136 | B47: 6.22 | C47: 5.87334 | D47: =B47*'PRC model'!$B$36+'PRC model'!$C$36 -> 4.244804875 | E47: 9.849375056 | F47: ='PRC model'!$A$36*t*86400/10^D47/Lo^2 -> 1.917317341 | G47: 0.3020282912 | H47: =IFERROR(IF(E47>1,1-(EXP((1/E47^2-G47^2)*F47)*((COS(G47/E47*F47*2)*(1-erfzR(1/E47*F47^0.5,G47*F47^0.5))-SIN(G47/E47*F47*2)*(-erfzI(1/E47*F47^0.5,G47*F47^0.5)))+(COS(G47/E47*F47*2)*(-erfzI(1/E47*F47^0.5,G47*F47^0.5))+SIN(G47/E47*F47*2)*(1-erfzR(1/E47*F47^0.5,G47*F47^0.5)))/E47/G47)),1-((1/E47+G47)*EXP((1/E47+G47)^2*F47)*ERFC((1/E47+G47)*F47^0.5)-(1/E47-G47)*EXP((1/E47-G47)^2*F47)*ERFC((1/E47-G47)*F47^0.5))/2/G47),1) -> 0.3722685401
A48: 110 | B48: 6.48 | C48: 6.11956 | D48: =B48*'PRC model'!$B$36+'PRC model'!$C$36 -> 4.710374123 | E48: 5.943734846 | F48: ='PRC model'!$A$36*t*86400/10^D48/Lo^2 -> 0.6563337724 | G48: 0.3740831597 | H48: =IFERROR(IF(E48>1,1-(EXP((1/E48^2-G48^2)*F48)*((COS(G48/E48*F48*2)*(1-erfzR(1/E48*F48^0.5,G48*F48^0.5))-SIN(G48/E48*F48*2)*(-erfzI(1/E48*F48^0.5,G48*F48^0.5)))+(COS(G48/E48*F48*2)*(-erfzI(1/E48*F48^0.5,G48*F48^0.5))+SIN(G48/E48*F48*2)*(1-erfzR(1/E48*F48^0.5,G48*F48^0.5)))/E48/G48)),1-((1/E48+G48)*EXP((1/E48+G48)^2*F48)*ERFC((1/E48+G48)*F48^0.5)-(1/E48-G48)*EXP((1/E48-G48)^2*F48)*ERFC((1/E48-G48)*F48^0.5))/2/G48),1) -> 0.3176473869
A49: 77 | B49: 6.36 | C49: 6.00592 | D49: =B49*'PRC model'!$B$36+'PRC model'!$C$36 -> 4.495496009 | E49: 7.504081491 | F49: ='PRC model'!$A$36*t*86400/10^D49/Lo^2 -> 1.076472319 | G49: 0.3398563942 | H49: =IFERROR(IF(E49>1,1-(EXP((1/E49^2-G49^2)*F49)*((COS(G49/E49*F49*2)*(1-erfzR(1/E49*F49^0.5,G49*F49^0.5))-SIN(G49/E49*F49*2)*(-erfzI(1/E49*F49^0.5,G49*F49^0.5)))+(COS(G49/E49*F49*2)*(-erfzI(1/E49*F49^0.5,G49*F49^0.5))+SIN(G49/E49*F49*2)*(1-erfzR(1/E49*F49^0.5,G49*F49^0.5)))/E49/G49)),1-((1/E49+G49)*EXP((1/E49+G49)^2*F49)*ERFC((1/E49+G49)*F49^0.5)-(1/E49-G49)*EXP((1/E49-G49)^2*F49)*ERFC((1/E49-G49)*F49^0.5))/2/G49),1) -> 0.339993122
A50: 82 | B50: 6.2 | C50: 5.8544 | D50: =B50*'PRC model'!$B$36+'PRC model'!$C$36 -> 4.208991856 | E50: 10.23956941 | F50: ='PRC model'!$A$36*t*86400/10^D50/Lo^2 -> 2.082126057 | G50: 0.2968548657 | H50: =IFERROR(IF(E50>1,1-(EXP((1/E50^2-G50^2)*F50)*((COS(G50/E50*F50*2)*(1-erfzR(1/E50*F50^0.5,G50*F50^0.5))-SIN(G50/E50*F50*2)*(-erfzI(1/E50*F50^0.5,G50*F50^0.5)))+(COS(G50/E50*F50*2)*(-erfzI(1/E50*F50^0.5,G50*F50^0.5))+SIN(G50/E50*F50*2)*(1-erfzR(1/E50*F50^0.5,G50*F50^0.5)))/E50/G50)),1-((1/E50+G50)*EXP((1/E50+G50)^2*F50)*ERFC((1/E50+G50)*F50^0.5)-(1/E50-G50)*EXP((1/E50-G50)^2*F50)*ERFC((1/E50-G50)*F50^0.5))/2/G50),1) -> 0.3775010483
A51: 151 | B51: 6.64 | C51: 6.27108 | D51: =B51*'PRC model'!$B$36+'PRC model'!$C$36 -> 4.996878276 | E51: 4.355873655 | F51: ='PRC model'!$A$36*t*86400/10^D51/Lo^2 -> 0.3393287046 | G51: 0.4205595764 | H51: =IFERROR(IF(E51>1,1-(EXP((1/E51^2-G51^2)*F51)*((COS(G51/E51*F51*2)*(1-erfzR(1/E51*F51^0.5,G51*F51^0.5))-SIN(G51/E51*F51*2)*(-erfzI(1/E51*F51^0.5,G51*F51^0.5)))+(COS(G51/E51*F51*2)*(-erfzI(1/E51*F51^0.5,G51*F51^0.5))+SIN(G51/E51*F51*2)*(1-erfzR(1/E51*F51^0.5,G51*F51^0.5)))/E51/G51)),1-((1/E51+G51)*EXP((1/E51+G51)^2*F51)*ERFC((1/E51+G51)*F51^0.5)-(1/E51-G51)*EXP((1/E51-G51)^2*F51)*ERFC((1/E51-G51)*F51^0.5))/2/G51),1) -> 0.2939857978
A52: 135 | B52: 6.64 | C52: 6.27108 | D52: =B52*'PRC model'!$B$36+'PRC model'!$C$36 -> 4.996878276 | E52: 4.355873655 | F52: ='PRC model'!$A$36*t*86400/10^D52/Lo^2 -> 0.3393287046 | G52: 0.4205595764 | H52: =IFERROR(IF(E52>1,1-(EXP((1/E52^2-G52^2)*F52)*((COS(G52/E52*F52*2)*(1-erfzR(1/E52*F52^0.5,G52*F52^0.5))-SIN(G52/E52*F52*2)*(-erfzI(1/E52*F52^0.5,G52*F52^0.5)))+(COS(G52/E52*F52*2)*(-erfzI(1/E52*F52^0.5,G52*F52^0.5))+SIN(G52/E52*F52*2)*(1-erfzR(1/E52*F52^0.5,G52*F52^0.5)))/E52/G52)),1-((1/E52+G52)*EXP((1/E52+G52)^2*F52)*ERFC((1/E52+G52)*F52^0.5)-(1/E52-G52)*EXP((1/E52-G52)^2*F52)*ERFC((1/E52-G52)*F52^0.5))/2/G52),1) -> 0.2939857978
A53: 144 | B53: 6.67 | C53: 6.29949 | D53: =B53*'PRC model'!$B$36+'PRC model'!$C$36 -> 5.050597805 | E53: 4.109280106 | F53: ='PRC model'!$A$36*t*86400/10^D53/Lo^2 -> 0.2998479407 | G53: 0.4291055962 | H53: =IFERROR(IF(E53>1,1-(EXP((1/E53^2-G53^2)*F53)*((COS(G53/E53*F53*2)*(1-erfzR(1/E53*F53^0.5,G53*F53^0.5))-SIN(G53/E53*F53*2)*(-erfzI(1/E53*F53^0.5,G53*F53^0.5)))+(COS(G53/E53*F53*2)*(-erfzI(1/E53*F53^0.5,G53*F53^0.5))+SIN(G53/E53*F53*2)*(1-erfzR(1/E53*F53^0.5,G53*F53^0.5)))/E53/G53)),1-((1/E53+G53)*EXP((1/E53+G53)^2*F53)*ERFC((1/E53+G53)*F53^0.5)-(1/E53-G53)*EXP((1/E53-G53)^2*F53)*ERFC((1/E53-G53)*F53^0.5))/2/G53),1) -> 0.2902024463
A54: 107 | B54: 6.71 | C54: 6.33737 | D54: =B54*'PRC model'!$B$36+'PRC model'!$C$36 -> 5.122223843 | E54: 3.802066489 | F54: ='PRC model'!$A$36*t*86400/10^D54/Lo^2 -> 0.2542582376 | G54: 0.4402704228 | H54: =IFERROR(IF(E54>1,1-(EXP((1/E54^2-G54^2)*F54)*((COS(G54/E54*F54*2)*(1-erfzR(1/E54*F54^0.5,G54*F54^0.5))-SIN(G54/E54*F54*2)*(-erfzI(1/E54*F54^0.5,G54*F54^0.5)))+(COS(G54/E54*F54*2)*(-erfzI(1/E54*F54^0.5,G54*F54^0.5))+SIN(G54/E54*F54*2)*(1-erfzR(1/E54*F54^0.5,G54*F54^0.5)))/E54/G54)),1-((1/E54+G54)*EXP((1/E54+G54)^2*F54)*ERFC((1/E54+G54)*F54^0.5)-(1/E54-G54)*EXP((1/E54-G54)^2*F54)*ERFC((1/E54-G54)*F54^0.5))/2/G54),1) -> 0.2854372973
A55: 123 | B55: 6.74 | C55: 6.36578 | D55: =B55*'PRC model'!$B$36+'PRC model'!$C$36 -> 5.175943371 | E55: 3.586824923 | F55: ='PRC model'!$A$36*t*86400/10^D55/Lo^2 -> 0.2246753897 | G55: 0.4484079869 | H55: =IFERROR(IF(E55>1,1-(EXP((1/E55^2-G55^2)*F55)*((COS(G55/E55*F55*2)*(1-erfzR(1/E55*F55^0.5,G55*F55^0.5))-SIN(G55/E55*F55*2)*(-erfzI(1/E55*F55^0.5,G55*F55^0.5)))+(COS(G55/E55*F55*2)*(-erfzI(1/E55*F55^0.5,G55*F55^0.5))+SIN(G55/E55*F55*2)*(1-erfzR(1/E55*F55^0.5,G55*F55^0.5)))/E55/G55)),1-((1/E55+G55)*EXP((1/E55+G55)^2*F55)*ERFC((1/E55+G55)*F55^0.5)-(1/E55-G55)*EXP((1/E55-G55)^2*F55)*ERFC((1/E55-G55)*F55^0.5))/2/G55),1) -> 0.2820605678
A56: 149 | B56: 6.67 | C56: 6.29949 | D56: =B56*'PRC model'!$B$36+'PRC model'!$C$36 -> 5.050597805 | E56: 4.109280106 | F56: ='PRC model'!$A$36*t*86400/10^D56/Lo^2 -> 0.2998479407 | G56: 0.4291055962 | H56: =IFERROR(IF(E56>1,1-(EXP((1/E56^2-G56^2)*F56)*((COS(G56/E56*F56*2)*(1-erfzR(1/E56*F56^0.5,G56*F56^0.5))-SIN(G56/E56*F56*2)*(-erfzI(1/E56*F56^0.5,G56*F56^0.5)))+(COS(G56/E56*F56*2)*(-erfzI(1/E56*F56^0.5,G56*F56^0.5))+SIN(G56/E56*F56*2)*(1-erfzR(1/E56*F56^0.5,G56*F56^0.5)))/E56/G56)),1-((1/E56+G56)*EXP((1/E56+G56)^2*F56)*ERFC((1/E56+G56)*F56^0.5)-(1/E56-G56)*EXP((1/E56-G56)^2*F56)*ERFC((1/E56-G56)*F56^0.5))/2/G56),1) -> 0.2902024463
A57: 118 | B57: 6.74 | C57: 6.36578 | D57: =B57*'PRC model'!$B$36+'PRC model'!$C$36 -> 5.175943371 | E57: 3.586824923 | F57: ='PRC model'!$A$36*t*86400/10^D57/Lo^2 -> 0.2246753897 | G57: 0.4484079869 | H57: =IFERROR(IF(E57>1,1-(EXP((1/E57^2-G57^2)*F57)*((COS(G57/E57*F57*2)*(1-erfzR(1/E57*F57^0.5,G57*F57^0.5))-SIN(G57/E57*F57*2)*(-erfzI(1/E57*F57^0.5,G57*F57^0.5)))+(COS(G57/E57*F57*2)*(-erfzI(1/E57*F57^0.5,G57*F57^0.5))+SIN(G57/E57*F57*2)*(1-erfzR(1/E57*F57^0.5,G57*F57^0.5)))/E57/G57)),1-((1/E57+G57)*EXP((1/E57+G57)^2*F57)*ERFC((1/E57+G57)*F57^0.5)-(1/E57-G57)*EXP((1/E57-G57)^2*F57)*ERFC((1/E57-G57)*F57^0.5))/2/G57),1) -> 0.2820605678
A58: 134 | B58: 6.55 | C58: 6.18585 | D58: =B58*'PRC model'!$B$36+'PRC model'!$C$36 -> 4.83571969 | E58: 5.188046503 | F58: ='PRC model'!$A$36*t*86400/10^D58/Lo^2 -> 0.4917894242 | G58: 0.3944590164 | H58: =IFERROR(IF(E58>1,1-(EXP((1/E58^2-G58^2)*F58)*((COS(G58/E58*F58*2)*(1-erfzR(1/E58*F58^0.5,G58*F58^0.5))-SIN(G58/E58*F58*2)*(-erfzI(1/E58*F58^0.5,G58*F58^0.5)))+(COS(G58/E58*F58*2)*(-erfzI(1/E58*F58^0.5,G58*F58^0.5))+SIN(G58/E58*F58*2)*(1-erfzR(1/E58*F58^0.5,G58*F58^0.5)))/E58/G58)),1-((1/E58+G58)*EXP((1/E58+G58)^2*F58)*ERFC((1/E58+G58)*F58^0.5)-(1/E58-G58)*EXP((1/E58-G58)^2*F58)*ERFC((1/E58-G58)*F58^0.5))/2/G58),1) -> 0.3065220821
A59: 146 | B59: 6.89 | C59: 6.50783 | D59: =B59*'PRC model'!$B$36+'PRC model'!$C$36 -> 5.444541015 | E59: 2.680171196 | F59: ='PRC model'!$A$36*t*86400/10^D59/Lo^2 -> 0.1210480675 | G59: 0.4836311129 | H59: =IFERROR(IF(E59>1,1-(EXP((1/E59^2-G59^2)*F59)*((COS(G59/E59*F59*2)*(1-erfzR(1/E59*F59^0.5,G59*F59^0.5))-SIN(G59/E59*F59*2)*(-erfzI(1/E59*F59^0.5,G59*F59^0.5)))+(COS(G59/E59*F59*2)*(-erfzI(1/E59*F59^0.5,G59*F59^0.5))+SIN(G59/E59*F59*2)*(1-erfzR(1/E59*F59^0.5,G59*F59^0.5)))/E59/G59)),1-((1/E59+G59)*EXP((1/E59+G59)^2*F59)*ERFC((1/E59+G59)*F59^0.5)-(1/E59-G59)*EXP((1/E59-G59)^2*F59)*ERFC((1/E59-G59)*F59^0.5))/2/G59),1) -> 0.2673934848
A60: 153 | B60: 6.92 | C60: 6.53624 | D60: =B60*'PRC model'!$B$36+'PRC model'!$C$36 -> 5.498260543 | E60: 2.528442065 | F60: ='PRC model'!$A$36*t*86400/10^D60/Lo^2 -> 0.1069641715 | G60: 0.4889579186 | H60: =IFERROR(IF(E60>1,1-(EXP((1/E60^2-G60^2)*F60)*((COS(G60/E60*F60*2)*(1-erfzR(1/E60*F60^0.5,G60*F60^0.5))-SIN(G60/E60*F60*2)*(-erfzI(1/E60*F60^0.5,G60*F60^0.5)))+(COS(G60/E60*F60*2)*(-erfzI(1/E60*F60^0.5,G60*F60^0.5))+SIN(G60/E60*F60*2)*(1-erfzR(1/E60*F60^0.5,G60*F60^0.5)))/E60/G60)),1-((1/E60+G60)*EXP((1/E60+G60)^2*F60)*ERFC((1/E60+G60)*F60^0.5)-(1/E60-G60)*EXP((1/E60-G60)^2*F60)*ERFC((1/E60-G60)*F60^0.5))/2/G60),1) -> 0.2648484619
A61: 132 | B61: 6.58 | C61: 6.21426 | D61: =B61*'PRC model'!$B$36+'PRC model'!$C$36 -> 4.889439219 | E61: 4.894342208 | F61: ='PRC model'!$A$36*t*86400/10^D61/Lo^2 -> 0.4345699144 | G61: 0.4032020433 | H61: =IFERROR(IF(E61>1,1-(EXP((1/E61^2-G61^2)*F61)*((COS(G61/E61*F61*2)*(1-erfzR(1/E61*F61^0.5,G61*F61^0.5))-SIN(G61/E61*F61*2)*(-erfzI(1/E61*F61^0.5,G61*F61^0.5)))+(COS(G61/E61*F61*2)*(-erfzI(1/E61*F61^0.5,G61*F61^0.5))+SIN(G61/E61*F61*2)*(1-erfzR(1/E61*F61^0.5,G61*F61^0.5)))/E61/G61)),1-((1/E61+G61)*EXP((1/E61+G61)^2*F61)*ERFC((1/E61+G61)*F61^0.5)-(1/E61-G61)*EXP((1/E61-G61)^2*F61)*ERFC((1/E61-G61)*F61^0.5))/2/G61),1) -> 0.3021349498
A62: 105 | B62: 6.65 | C62: 6.28055 | D62: =B62*'PRC model'!$B$36+'PRC model'!$C$36 -> 5.014784785 | E62: 4.272073979 | F62: ='PRC model'!$A$36*t*86400/10^D62/Lo^2 -> 0.3256222625 | G62: 0.4234213889 | H62: =IFERROR(IF(E62>1,1-(EXP((1/E62^2-G62^2)*F62)*((COS(G62/E62*F62*2)*(1-erfzR(1/E62*F62^0.5,G62*F62^0.5))-SIN(G62/E62*F62*2)*(-erfzI(1/E62*F62^0.5,G62*F62^0.5)))+(COS(G62/E62*F62*2)*(-erfzI(1/E62*F62^0.5,G62*F62^0.5))+SIN(G62/E62*F62*2)*(1-erfzR(1/E62*F62^0.5,G62*F62^0.5)))/E62/G62)),1-((1/E62+G62)*EXP((1/E62+G62)^2*F62)*ERFC((1/E62+G62)*F62^0.5)-(1/E62-G62)*EXP((1/E62-G62)^2*F62)*ERFC((1/E62-G62)*F62^0.5))/2/G62),1) -> 0.2927039995
A63: 141 | B63: 6.82 | C63: 6.44154 | D63: =B63*'PRC model'!$B$36+'PRC model'!$C$36 -> 5.319195448 | E63: 3.070563636 | F63: ='PRC model'!$A$36*t*86400/10^D63/Lo^2 -> 0.161548685 | G63: 0.4686257936 | H63: =IFERROR(IF(E63>1,1-(EXP((1/E63^2-G63^2)*F63)*((COS(G63/E63*F63*2)*(1-erfzR(1/E63*F63^0.5,G63*F63^0.5))-SIN(G63/E63*F63*2)*(-erfzI(1/E63*F63^0.5,G63*F63^0.5)))+(COS(G63/E63*F63*2)*(-erfzI(1/E63*F63^0.5,G63*F63^0.5))+SIN(G63/E63*F63*2)*(1-erfzR(1/E63*F63^0.5,G63*F63^0.5)))/E63/G63)),1-((1/E63+G63)*EXP((1/E63+G63)^2*F63)*ERFC((1/E63+G63)*F63^0.5)-(1/E63-G63)*EXP((1/E63-G63)^2*F63)*ERFC((1/E63-G63)*F63^0.5))/2/G63),1) -> 0.2738094502
A64: 179 | B64: 6.73 | C64: 6.35631 | D64: =B64*'PRC model'!$B$36+'PRC model'!$C$36 -> 5.158036862 | E64: 3.657182966 | F64: ='PRC model'!$A$36*t*86400/10^D64/Lo^2 -> 0.2341326675 | G64: 0.4457219702 | H64: =IFERROR(IF(E64>1,1-(EXP((1/E64^2-G64^2)*F64)*((COS(G64/E64*F64*2)*(1-erfzR(1/E64*F64^0.5,G64*F64^0.5))-SIN(G64/E64*F64*2)*(-erfzI(1/E64*F64^0.5,G64*F64^0.5)))+(COS(G64/E64*F64*2)*(-erfzI(1/E64*F64^0.5,G64*F64^0.5))+SIN(G64/E64*F64*2)*(1-erfzR(1/E64*F64^0.5,G64*F64^0.5)))/E64/G64)),1-((1/E64+G64)*EXP((1/E64+G64)^2*F64)*ERFC((1/E64+G64)*F64^0.5)-(1/E64-G64)*EXP((1/E64-G64)^2*F64)*ERFC((1/E64-G64)*F64^0.5))/2/G64),1) -> 0.2831680526
A65: 163 | B65: 6.99 | C65: 6.60253 | D65: =B65*'PRC model'!$B$36+'PRC model'!$C$36 -> 5.62360611 | E65: 2.206975134 | F65: ='PRC model'!$A$36*t*86400/10^D65/Lo^2 -> 0.08014801392 | G65: 0.4977963655 | H65: =IFERROR(IF(E65>1,1-(EXP((1/E65^2-G65^2)*F65)*((COS(G65/E65*F65*2)*(1-erfzR(1/E65*F65^0.5,G65*F65^0.5))-SIN(G65/E65*F65*2)*(-erfzI(1/E65*F65^0.5,G65*F65^0.5)))+(COS(G65/E65*F65*2)*(-erfzI(1/E65*F65^0.5,G65*F65^0.5))+SIN(G65/E65*F65*2)*(1-erfzR(1/E65*F65^0.5,G65*F65^0.5)))/E65/G65)),1-((1/E65+G65)*EXP((1/E65+G65)^2*F65)*ERFC((1/E65+G65)*F65^0.5)-(1/E65-G65)*EXP((1/E65-G65)^2*F65)*ERFC((1/E65-G65)*F65^0.5))/2/G65),1) -> 0.2593382165
A66: 138 | B66: 6.83 | C66: 6.45101 | D66: =B66*'PRC model'!$B$36+'PRC model'!$C$36 -> 5.337101957 | E66: 3.011491161 | F66: ='PRC model'!$A$36*t*86400/10^D66/Lo^2 -> 0.1550232786 | G66: 0.4709528956 | H66: =IFERROR(IF(E66>1,1-(EXP((1/E66^2-G66^2)*F66)*((COS(G66/E66*F66*2)*(1-erfzR(1/E66*F66^0.5,G66*F66^0.5))-SIN(G66/E66*F66*2)*(-erfzI(1/E66*F66^0.5,G66*F66^0.5)))+(COS(G66/E66*F66*2)*(-erfzI(1/E66*F66^0.5,G66*F66^0.5))+SIN(G66/E66*F66*2)*(1-erfzR(1/E66*F66^0.5,G66*F66^0.5)))/E66/G66)),1-((1/E66+G66)*EXP((1/E66+G66)^2*F66)*ERFC((1/E66+G66)*F66^0.5)-(1/E66-G66)*EXP((1/E66-G66)^2*F66)*ERFC((1/E66-G66)*F66^0.5))/2/G66),1) -> 0.272849546
A67: 158 | B67: 7.02 | C67: 6.63094 | D67: =B67*'PRC model'!$B$36+'PRC model'!$C$36 -> 5.677325639 | E67: =10^C67*(Lo^2-Li^2)/10^D67/Lo^2 -> 2.082034451 | F67: ='PRC model'!$A$36*t*86400/10^D67/Lo^2 -> 0.07082282341 | G67: 0.4996117376 | H67: =IFERROR(IF(E67>1,1-(EXP((1/E67^2-G67^2)*F67)*((COS(G67/E67*F67*2)*(1-erfzR(1/E67*F67^0.5,G67*F67^0.5))-SIN(G67/E67*F67*2)*(-erfzI(1/E67*F67^0.5,G67*F67^0.5)))+(COS(G67/E67*F67*2)*(-erfzI(1/E67*F67^0.5,G67*F67^0.5))+SIN(G67/E67*F67*2)*(1-erfzR(1/E67*F67^0.5,G67*F67^0.5)))/E67/G67)),1-((1/E67+G67)*EXP((1/E67+G67)^2*F67)*ERFC((1/E67+G67)*F67^0.5)-(1/E67-G67)*EXP((1/E67-G67)^2*F67)*ERFC((1/E67-G67)*F67^0.5))/2/G67),1) -> 0.2571453409
A68: 178 | B68: 7.14 | C68: =0.947*B68-0.017 -> 6.74458 | D68: =B68*'PRC model'!$B$36+'PRC model'!$C$36 -> 5.892203753 | E68: 1.649110652 | F68: ='PRC model'!$A$36*t*86400/10^D68/Lo^2 -> 0.04318124122 | G68: =IF(E68>1,(1/E68-1/E68^2)^0.5,(1/E68^2-1/E68)^0.5) -> 0.4885506226 | H68: =IFERROR(IF(E68>1,1-(EXP((1/E68^2-G68^2)*F68)*((COS(G68/E68*F68*2)*(1-erfzR(1/E68*F68^0.5,G68*F68^0.5))-SIN(G68/E68*F68*2)*(-erfzI(1/E68*F68^0.5,G68*F68^0.5)))+(COS(G68/E68*F68*2)*(-erfzI(1/E68*F68^0.5,G68*F68^0.5))+SIN(G68/E68*F68*2)*(1-erfzR(1/E68*F68^0.5,G68*F68^0.5)))/E68/G68)),1-((1/E68+G68)*EXP((1/E68+G68)^2*F68)*ERFC((1/E68+G68)*F68^0.5)-(1/E68-G68)*EXP((1/E68-G68)^2*F68)*ERFC((1/E68-G68)*F68^0.5))/2/G68),1) -> 0.249251172
A69: 187 | B69: 7.17 | C69: 6.77299 | D69: =B69*'PRC model'!$B$36+'PRC model'!$C$36 -> 5.945923282 | E69: 1.555751642 | F69: ='PRC model'!$A$36*t*86400/10^D69/Lo^2 -> 0.03815712046 | G69: 0.4791815735 | H69: =IFERROR(IF(E69>1,1-(EXP((1/E69^2-G69^2)*F69)*((COS(G69/E69*F69*2)*(1-erfzR(1/E69*F69^0.5,G69*F69^0.5))-SIN(G69/E69*F69*2)*(-erfzI(1/E69*F69^0.5,G69*F69^0.5)))+(COS(G69/E69*F69*2)*(-erfzI(1/E69*F69^0.5,G69*F69^0.5))+SIN(G69/E69*F69*2)*(1-erfzR(1/E69*F69^0.5,G69*F69^0.5)))/E69/G69)),1-((1/E69+G69)*EXP((1/E69+G69)^2*F69)*ERFC((1/E69+G69)*F69^0.5)-(1/E69-G69)*EXP((1/E69-G69)^2*F69)*ERFC((1/E69-G69)*F69^0.5))/2/G69),1) -> 0.2474724413
A70: 183 | B70: 7.2 | C70: 6.8014 | D70: =B70*'PRC model'!$B$36+'PRC model'!$C$36 -> 5.999642811 | E70: 1.467677848 | F70: ='PRC model'!$A$36*t*86400/10^D70/Lo^2 -> 0.03371755421 | G70: 0.4659535882 | H70: =IFERROR(IF(E70>1,1-(EXP((1/E70^2-G70^2)*F70)*((COS(G70/E70*F70*2)*(1-erfzR(1/E70*F70^0.5,G70*F70^0.5))-SIN(G70/E70*F70*2)*(-erfzI(1/E70*F70^0.5,G70*F70^0.5)))+(COS(G70/E70*F70*2)*(-erfzI(1/E70*F70^0.5,G70*F70^0.5))+SIN(G70/E70*F70*2)*(1-erfzR(1/E70*F70^0.5,G70*F70^0.5)))/E70/G70)),1-((1/E70+G70)*EXP((1/E70+G70)^2*F70)*ERFC((1/E70+G70)*F70^0.5)-(1/E70-G70)*EXP((1/E70-G70)^2*F70)*ERFC((1/E70-G70)*F70^0.5))/2/G70),1) -> 0.245762755
A71: 128 | B71: 6.74 | C71: 6.36578 | D71: =B71*'PRC model'!$B$36+'PRC model'!$C$36 -> 5.175943371 | E71: 3.586824923 | F71: ='PRC model'!$A$36*t*86400/10^D71/Lo^2 -> 0.2246753897 | G71: 0.4484079869 | H71: =IFERROR(IF(E71>1,1-(EXP((1/E71^2-G71^2)*F71)*((COS(G71/E71*F71*2)*(1-erfzR(1/E71*F71^0.5,G71*F71^0.5))-SIN(G71/E71*F71*2)*(-erfzI(1/E71*F71^0.5,G71*F71^0.5)))+(COS(G71/E71*F71*2)*(-erfzI(1/E71*F71^0.5,G71*F71^0.5))+SIN(G71/E71*F71*2)*(1-erfzR(1/E71*F71^0.5,G71*F71^0.5)))/E71/G71)),1-((1/E71+G71)*EXP((1/E71+G71)^2*F71)*ERFC((1/E71+G71)*F71^0.5)-(1/E71-G71)*EXP((1/E71-G71)^2*F71)*ERFC((1/E71-G71)*F71^0.5))/2/G71),1) -> 0.2820605678
A72: 167 | B72: 7.27 | C72: 6.86769 | D72: =B72*'PRC model'!$B$36+'PRC model'!$C$36 -> 6.124988378 | E72: 1.281076819 | F72: ='PRC model'!$A$36*t*86400/10^D72/Lo^2 -> 0.02526448777 | G72: 0.4138446471 | H72: =IFERROR(IF(E72>1,1-(EXP((1/E72^2-G72^2)*F72)*((COS(G72/E72*F72*2)*(1-erfzR(1/E72*F72^0.5,G72*F72^0.5))-SIN(G72/E72*F72*2)*(-erfzI(1/E72*F72^0.5,G72*F72^0.5)))+(COS(G72/E72*F72*2)*(-erfzI(1/E72*F72^0.5,G72*F72^0.5))+SIN(G72/E72*F72*2)*(1-erfzR(1/E72*F72^0.5,G72*F72^0.5)))/E72/G72)),1-((1/E72+G72)*EXP((1/E72+G72)^2*F72)*ERFC((1/E72+G72)*F72^0.5)-(1/E72-G72)*EXP((1/E72-G72)^2*F72)*ERFC((1/E72-G72)*F72^0.5))/2/G72),1) -> 0.242019887
A73: 174 | B73: 7.11 | C73: 6.71617 | D73: =B73*'PRC model'!$B$36+'PRC model'!$C$36 -> 5.838484225 | E73: 1.748072036 | F73: ='PRC model'!$A$36*t*86400/10^D73/Lo^2 -> 0.04886688436 | G73: 0.4947802832 | H73: =IFERROR(IF(E73>1,1-(EXP((1/E73^2-G73^2)*F73)*((COS(G73/E73*F73*2)*(1-erfzR(1/E73*F73^0.5,G73*F73^0.5))-SIN(G73/E73*F73*2)*(-erfzI(1/E73*F73^0.5,G73*F73^0.5)))+(COS(G73/E73*F73*2)*(-erfzI(1/E73*F73^0.5,G73*F73^0.5))+SIN(G73/E73*F73*2)*(1-erfzR(1/E73*F73^0.5,G73*F73^0.5)))/E73/G73)),1-((1/E73+G73)*EXP((1/E73+G73)^2*F73)*ERFC((1/E73+G73)*F73^0.5)-(1/E73-G73)*EXP((1/E73-G73)^2*F73)*ERFC((1/E73-G73)*F73^0.5))/2/G73),1) -> 0.2511031958
A74: 177 | B74: 7.08 | C74: 6.68776 | D74: =B74*'PRC model'!$B$36+'PRC model'!$C$36 -> 5.784764696 | E74: 1.852971988 | F74: ='PRC model'!$A$36*t*86400/10^D74/Lo^2 -> 0.05530115208 | G74: 0.4984235229 | H74: =IFERROR(IF(E74>1,1-(EXP((1/E74^2-G74^2)*F74)*((COS(G74/E74*F74*2)*(1-erfzR(1/E74*F74^0.5,G74*F74^0.5))-SIN(G74/E74*F74*2)*(-erfzI(1/E74*F74^0.5,G74*F74^0.5)))+(COS(G74/E74*F74*2)*(-erfzI(1/E74*F74^0.5,G74*F74^0.5))+SIN(G74/E74*F74*2)*(1-erfzR(1/E74*F74^0.5,G74*F74^0.5)))/E74/G74)),1-((1/E74+G74)*EXP((1/E74+G74)^2*F74)*ERFC((1/E74+G74)*F74^0.5)-(1/E74-G74)*EXP((1/E74-G74)^2*F74)*ERFC((1/E74-G74)*F74^0.5))/2/G74),1) -> 0.2530330116
A75: 171 | B75: 7.11 | C75: 6.71617 | D75: =B75*'PRC model'!$B$36+'PRC model'!$C$36 -> 5.838484225 | E75: 1.748072036 | F75: ='PRC model'!$A$36*t*86400/10^D75/Lo^2 -> 0.04886688436 | G75: 0.4947802832 | H75: =IFERROR(IF(E75>1,1-(EXP((1/E75^2-G75^2)*F75)*((COS(G75/E75*F75*2)*(1-erfzR(1/E75*F75^0.5,G75*F75^0.5))-SIN(G75/E75*F75*2)*(-erfzI(1/E75*F75^0.5,G75*F75^0.5)))+(COS(G75/E75*F75*2)*(-erfzI(1/E75*F75^0.5,G75*F75^0.5))+SIN(G75/E75*F75*2)*(1-erfzR(1/E75*F75^0.5,G75*F75^0.5)))/E75/G75)),1-((1/E75+G75)*EXP((1/E75+G75)^2*F75)*ERFC((1/E75+G75)*F75^0.5)-(1/E75-G75)*EXP((1/E75-G75)^2*F75)*ERFC((1/E75-G75)*F75^0.5))/2/G75),1) -> 0.2511031958
A76: 156 | B76: 7.18 | C76: 6.78246 | D76: =B76*'PRC model'!$B$36+'PRC model'!$C$36 -> 5.963829792 | E76: 1.5258216 | F76: ='PRC model'!$A$36*t*86400/10^D76/Lo^2 -> 0.0366158469 | G76: 0.4752426978 | H76: =IFERROR(IF(E76>1,1-(EXP((1/E76^2-G76^2)*F76)*((COS(G76/E76*F76*2)*(1-erfzR(1/E76*F76^0.5,G76*F76^0.5))-SIN(G76/E76*F76*2)*(-erfzI(1/E76*F76^0.5,G76*F76^0.5)))+(COS(G76/E76*F76*2)*(-erfzI(1/E76*F76^0.5,G76*F76^0.5))+SIN(G76/E76*F76*2)*(1-erfzR(1/E76*F76^0.5,G76*F76^0.5)))/E76/G76)),1-((1/E76+G76)*EXP((1/E76+G76)^2*F76)*ERFC((1/E76+G76)*F76^0.5)-(1/E76-G76)*EXP((1/E76-G76)^2*F76)*ERFC((1/E76-G76)*F76^0.5))/2/G76),1) -> 0.2468950771
A77: 157 | B77: 7.18 | C77: 6.78246 | D77: =B77*'PRC model'!$B$36+'PRC model'!$C$36 -> 5.963829792 | E77: 1.5258216 | F77: ='PRC model'!$A$36*t*86400/10^D77/Lo^2 -> 0.0366158469 | G77: 0.4752426978 | H77: =IFERROR(IF(E77>1,1-(EXP((1/E77^2-G77^2)*F77)*((COS(G77/E77*F77*2)*(1-erfzR(1/E77*F77^0.5,G77*F77^0.5))-SIN(G77/E77*F77*2)*(-erfzI(1/E77*F77^0.5,G77*F77^0.5)))+(COS(G77/E77*F77*2)*(-erfzI(1/E77*F77^0.5,G77*F77^0.5))+SIN(G77/E77*F77*2)*(1-erfzR(1/E77*F77^0.5,G77*F77^0.5)))/E77/G77)),1-((1/E77+G77)*EXP((1/E77+G77)^2*F77)*ERFC((1/E77+G77)*F77^0.5)-(1/E77-G77)*EXP((1/E77-G77)^2*F77)*ERFC((1/E77-G77)*F77^0.5))/2/G77),1) -> 0.2468950771
A78: 173 | B78: 7.02 | C78: 6.63094 | D78: =B78*'PRC model'!$B$36+'PRC model'!$C$36 -> 5.677325639 | E78: 2.082034451 | F78: ='PRC model'!$A$36*t*86400/10^D78/Lo^2 -> 0.07082282341 | G78: 0.4996117376 | H78: =IFERROR(IF(E78>1,1-(EXP((1/E78^2-G78^2)*F78)*((COS(G78/E78*F78*2)*(1-erfzR(1/E78*F78^0.5,G78*F78^0.5))-SIN(G78/E78*F78*2)*(-erfzI(1/E78*F78^0.5,G78*F78^0.5)))+(COS(G78/E78*F78*2)*(-erfzI(1/E78*F78^0.5,G78*F78^0.5))+SIN(G78/E78*F78*2)*(1-erfzR(1/E78*F78^0.5,G78*F78^0.5)))/E78/G78)),1-((1/E78+G78)*EXP((1/E78+G78)^2*F78)*ERFC((1/E78+G78)*F78^0.5)-(1/E78-G78)*EXP((1/E78-G78)^2*F78)*ERFC((1/E78-G78)*F78^0.5))/2/G78),1) -> 0.2571453409
A79: 172 | B79: 7.33 | C79: 6.92451 | D79: =B79*'PRC model'!$B$36+'PRC model'!$C$36 -> 6.232427435 | E79: 1.140134573 | F79: ='PRC model'!$A$36*t*86400/10^D79/Lo^2 -> 0.01972747221 | G79: 0.3283345101 | H79: =IFERROR(IF(E79>1,1-(EXP((1/E79^2-G79^2)*F79)*((COS(G79/E79*F79*2)*(1-erfzR(1/E79*F79^0.5,G79*F79^0.5))-SIN(G79/E79*F79*2)*(-erfzI(1/E79*F79^0.5,G79*F79^0.5)))+(COS(G79/E79*F79*2)*(-erfzI(1/E79*F79^0.5,G79*F79^0.5))+SIN(G79/E79*F79*2)*(1-erfzR(1/E79*F79^0.5,G79*F79^0.5)))/E79/G79)),1-((1/E79+G79)*EXP((1/E79+G79)^2*F79)*ERFC((1/E79+G79)*F79^0.5)-(1/E79-G79)*EXP((1/E79-G79)^2*F79)*ERFC((1/E79-G79)*F79^0.5))/2/G79),1) -> 0.2390586177
A80: 180 | B80: 7.36 | C80: 6.95292 | D80: =B80*'PRC model'!$B$36+'PRC model'!$C$36 -> 6.286146963 | E80: 1.075589581 | F80: ='PRC model'!$A$36*t*86400/10^D80/Lo^2 -> 0.01743218843 | G80: 0.2556138507 | H80: =IFERROR(IF(E80>1,1-(EXP((1/E80^2-G80^2)*F80)*((COS(G80/E80*F80*2)*(1-erfzR(1/E80*F80^0.5,G80*F80^0.5))-SIN(G80/E80*F80*2)*(-erfzI(1/E80*F80^0.5,G80*F80^0.5)))+(COS(G80/E80*F80*2)*(-erfzI(1/E80*F80^0.5,G80*F80^0.5))+SIN(G80/E80*F80*2)*(1-erfzR(1/E80*F80^0.5,G80*F80^0.5)))/E80/G80)),1-((1/E80+G80)*EXP((1/E80+G80)^2*F80)*ERFC((1/E80+G80)*F80^0.5)-(1/E80-G80)*EXP((1/E80-G80)^2*F80)*ERFC((1/E80-G80)*F80^0.5))/2/G80),1) -> 0.2376547289
A81: 193 | B81: 7.52 | C81: 7.10444 | D81: =B81*'PRC model'!$B$36+'PRC model'!$C$36 -> 6.572651116 | E81: 0.7882471949 | F81: ='PRC model'!$A$36*t*86400/10^D81/Lo^2 -> 0.009012551488 | G81: 0.5837839519 | H81: =IFERROR(IF(E81>1,1-(EXP((1/E81^2-G81^2)*F81)*((COS(G81/E81*F81*2)*(1-erfzR(1/E81*F81^0.5,G81*F81^0.5))-SIN(G81/E81*F81*2)*(-erfzI(1/E81*F81^0.5,G81*F81^0.5)))+(COS(G81/E81*F81*2)*(-erfzI(1/E81*F81^0.5,G81*F81^0.5))+SIN(G81/E81*F81*2)*(1-erfzR(1/E81*F81^0.5,G81*F81^0.5)))/E81/G81)),1-((1/E81+G81)*EXP((1/E81+G81)^2*F81)*ERFC((1/E81+G81)*F81^0.5)-(1/E81-G81)*EXP((1/E81-G81)^2*F81)*ERFC((1/E81-G81)*F81^0.5))/2/G81),1) -> 0.2309003217
A82: 191 | B82: 7.55 | C82: 7.13285 | D82: =B82*'PRC model'!$B$36+'PRC model'!$C$36 -> 6.626370645 | E82: 0.7436231565 | F82: ='PRC model'!$A$36*t*86400/10^D82/Lo^2 -> 0.007963944598 | G82: 0.6809049522 | H82: =IFERROR(IF(E82>1,1-(EXP((1/E82^2-G82^2)*F82)*((COS(G82/E82*F82*2)*(1-erfzR(1/E82*F82^0.5,G82*F82^0.5))-SIN(G82/E82*F82*2)*(-erfzI(1/E82*F82^0.5,G82*F82^0.5)))+(COS(G82/E82*F82*2)*(-erfzI(1/E82*F82^0.5,G82*F82^0.5))+SIN(G82/E82*F82*2)*(1-erfzR(1/E82*F82^0.5,G82*F82^0.5)))/E82/G82)),1-((1/E82+G82)*EXP((1/E82+G82)^2*F82)*ERFC((1/E82+G82)*F82^0.5)-(1/E82-G82)*EXP((1/E82-G82)^2*F82)*ERFC((1/E82-G82)*F82^0.5))/2/G82),1) -> 0.229752508
A83: 170 | B83: 7.27 | C83: 6.86769 | D83: =B83*'PRC model'!$B$36+'PRC model'!$C$36 -> 6.124988378 | E83: 1.281076819 | F83: ='PRC model'!$A$36*t*86400/10^D83/Lo^2 -> 0.02526448777 | G83: 0.4138446471 | H83: =IFERROR(IF(E83>1,1-(EXP((1/E83^2-G83^2)*F83)*((COS(G83/E83*F83*2)*(1-erfzR(1/E83*F83^0.5,G83*F83^0.5))-SIN(G83/E83*F83*2)*(-erfzI(1/E83*F83^0.5,G83*F83^0.5)))+(COS(G83/E83*F83*2)*(-erfzI(1/E83*F83^0.5,G83*F83^0.5))+SIN(G83/E83*F83*2)*(1-erfzR(1/E83*F83^0.5,G83*F83^0.5)))/E83/G83)),1-((1/E83+G83)*EXP((1/E83+G83)^2*F83)*ERFC((1/E83+G83)*F83^0.5)-(1/E83-G83)*EXP((1/E83-G83)^2*F83)*ERFC((1/E83-G83)*F83^0.5))/2/G83),1) -> 0.242019887
A84: 190 | B84: 7.46 | C84: 7.04762 | D84: =B84*'PRC model'!$B$36+'PRC model'!$C$36 -> 6.465212059 | E84: 0.8856894901 | F84: ='PRC model'!$A$36*t*86400/10^D84/Lo^2 -> 0.01154215271 | G84: 0.3817346563 | H84: =IFERROR(IF(E84>1,1-(EXP((1/E84^2-G84^2)*F84)*((COS(G84/E84*F84*2)*(1-erfzR(1/E84*F84^0.5,G84*F84^0.5))-SIN(G84/E84*F84*2)*(-erfzI(1/E84*F84^0.5,G84*F84^0.5)))+(COS(G84/E84*F84*2)*(-erfzI(1/E84*F84^0.5,G84*F84^0.5))+SIN(G84/E84*F84*2)*(1-erfzR(1/E84*F84^0.5,G84*F84^0.5)))/E84/G84)),1-((1/E84+G84)*EXP((1/E84+G84)^2*F84)*ERFC((1/E84+G84)*F84^0.5)-(1/E84-G84)*EXP((1/E84-G84)^2*F84)*ERFC((1/E84-G84)*F84^0.5))/2/G84),1) -> 0.2333007737
A85: 198 | B85: 7.62 | C85: 7.19914 | D85: =B85*'PRC model'!$B$36+'PRC model'!$C$36 -> 6.751716212 | E85: 0.6490786713 | F85: ='PRC model'!$A$36*t*86400/10^D85/Lo^2 -> 0.005967365833 | G85: 0.9126569054 | H85: =IFERROR(IF(E85>1,1-(EXP((1/E85^2-G85^2)*F85)*((COS(G85/E85*F85*2)*(1-erfzR(1/E85*F85^0.5,G85*F85^0.5))-SIN(G85/E85*F85*2)*(-erfzI(1/E85*F85^0.5,G85*F85^0.5)))+(COS(G85/E85*F85*2)*(-erfzI(1/E85*F85^0.5,G85*F85^0.5))+SIN(G85/E85*F85*2)*(1-erfzR(1/E85*F85^0.5,G85*F85^0.5)))/E85/G85)),1-((1/E85+G85)*EXP((1/E85+G85)^2*F85)*ERFC((1/E85+G85)*F85^0.5)-(1/E85-G85)*EXP((1/E85-G85)^2*F85)*ERFC((1/E85-G85)*F85^0.5))/2/G85),1) -> 0.2271964169
A86: 203 | B86: 7.65 | C86: 7.22755 | D86: =B86*'PRC model'!$B$36+'PRC model'!$C$36 -> 6.80543574 | E86: 0.6123332039 | F86: ='PRC model'!$A$36*t*86400/10^D86/Lo^2 -> 0.00527306512 | G86: 1.016813943 | H86: =IFERROR(IF(E86>1,1-(EXP((1/E86^2-G86^2)*F86)*((COS(G86/E86*F86*2)*(1-erfzR(1/E86*F86^0.5,G86*F86^0.5))-SIN(G86/E86*F86*2)*(-erfzI(1/E86*F86^0.5,G86*F86^0.5)))+(COS(G86/E86*F86*2)*(-erfzI(1/E86*F86^0.5,G86*F86^0.5))+SIN(G86/E86*F86*2)*(1-erfzR(1/E86*F86^0.5,G86*F86^0.5)))/E86/G86)),1-((1/E86+G86)*EXP((1/E86+G86)^2*F86)*ERFC((1/E86+G86)*F86^0.5)-(1/E86-G86)*EXP((1/E86-G86)^2*F86)*ERFC((1/E86-G86)*F86^0.5))/2/G86),1) -> 0.2261489543
A87: 196 | B87: 7.65 | C87: 7.22755 | D87: =B87*'PRC model'!$B$36+'PRC model'!$C$36 -> 6.80543574 | E87: 0.6123332039 | F87: ='PRC model'!$A$36*t*86400/10^D87/Lo^2 -> 0.00527306512 | G87: 1.016813943 | H87: =IFERROR(IF(E87>1,1-(EXP((1/E87^2-G87^2)*F87)*((COS(G87/E87*F87*2)*(1-erfzR(1/E87*F87^0.5,G87*F87^0.5))-SIN(G87/E87*F87*2)*(-erfzI(1/E87*F87^0.5,G87*F87^0.5)))+(COS(G87/E87*F87*2)*(-erfzI(1/E87*F87^0.5,G87*F87^0.5))+SIN(G87/E87*F87*2)*(1-erfzR(1/E87*F87^0.5,G87*F87^0.5)))/E87/G87)),1-((1/E87+G87)*EXP((1/E87+G87)^2*F87)*ERFC((1/E87+G87)*F87^0.5)-(1/E87-G87)*EXP((1/E87-G87)^2*F87)*ERFC((1/E87-G87)*F87^0.5))/2/G87),1) -> 0.2261489543
A88: 195 | B88: 7.56 | C88: 7.14232 | D88: =B88*'PRC model'!$B$36+'PRC model'!$C$36 -> 6.644277154 | E88: 0.7293170989 | F88: ='PRC model'!$A$36*t*86400/10^D88/Lo^2 -> 0.007642258447 | G88: 0.7133686431 | H88: =IFERROR(IF(E88>1,1-(EXP((1/E88^2-G88^2)*F88)*((COS(G88/E88*F88*2)*(1-erfzR(1/E88*F88^0.5,G88*F88^0.5))-SIN(G88/E88*F88*2)*(-erfzI(1/E88*F88^0.5,G88*F88^0.5)))+(COS(G88/E88*F88*2)*(-erfzI(1/E88*F88^0.5,G88*F88^0.5))+SIN(G88/E88*F88*2)*(1-erfzR(1/E88*F88^0.5,G88*F88^0.5)))/E88/G88)),1-((1/E88+G88)*EXP((1/E88+G88)^2*F88)*ERFC((1/E88+G88)*F88^0.5)-(1/E88-G88)*EXP((1/E88-G88)^2*F88)*ERFC((1/E88-G88)*F88^0.5))/2/G88),1) -> 0.2293771625
A89: 194 | B89: 7.8 | C89: 7.3696 | D89: =B89*'PRC model'!$B$36+'PRC model'!$C$36 -> 7.074033384 | E89: 0.4575516929 | F89: ='PRC model'!$A$36*t*86400/10^D89/Lo^2 -> 0.002840962436 | G89: 1.609678015 | H89: =IFERROR(IF(E89>1,1-(EXP((1/E89^2-G89^2)*F89)*((COS(G89/E89*F89*2)*(1-erfzR(1/E89*F89^0.5,G89*F89^0.5))-SIN(G89/E89*F89*2)*(-erfzI(1/E89*F89^0.5,G89*F89^0.5)))+(COS(G89/E89*F89*2)*(-erfzI(1/E89*F89^0.5,G89*F89^0.5))+SIN(G89/E89*F89*2)*(1-erfzR(1/E89*F89^0.5,G89*F89^0.5)))/E89/G89)),1-((1/E89+G89)*EXP((1/E89+G89)^2*F89)*ERFC((1/E89+G89)*F89^0.5)-(1/E89-G89)*EXP((1/E89-G89)^2*F89)*ERFC((1/E89-G89)*F89^0.5))/2/G89),1) -> 0.2212784862
A90: 209 | B90: 8.18 | C90: 7.72946 | D90: =B90*'PRC model'!$B$36+'PRC model'!$C$36 -> 7.754480747 | E90: 0.2187020247 | F90: ='PRC model'!$A$36*t*86400/10^D90/Lo^2 -> 0.0005929500753 | G90: 4.04162063 | H90: =IFERROR(IF(E90>1,1-(EXP((1/E90^2-G90^2)*F90)*((COS(G90/E90*F90*2)*(1-erfzR(1/E90*F90^0.5,G90*F90^0.5))-SIN(G90/E90*F90*2)*(-erfzI(1/E90*F90^0.5,G90*F90^0.5)))+(COS(G90/E90*F90*2)*(-erfzI(1/E90*F90^0.5,G90*F90^0.5))+SIN(G90/E90*F90*2)*(1-erfzR(1/E90*F90^0.5,G90*F90^0.5)))/E90/G90)),1-((1/E90+G90)*EXP((1/E90+G90)^2*F90)*ERFC((1/E90+G90)*F90^0.5)-(1/E90-G90)*EXP((1/E90-G90)^2*F90)*ERFC((1/E90-G90)*F90^0.5))/2/G90),1) -> 0.2108774228

Sheet fitted_RD
B1: PRC#
B2: ='PRC model'!B12 -> 1 | C2: ='PRC model'!C12 -> 2 | D2: ='PRC model'!D12 -> 3 | E2: ='PRC model'!E12 -> 4 | L2: ='PRC model'!L12 ->  | M2: ='PRC model'!M12 ->  | N2: ='PRC model'!N12 ->  | O2: ='PRC model'!O12 ->  | P2: ='PRC model'!P12 ->  | Q2: ='PRC model'!Q12 ->  | R2: ='PRC model'!R12 ->  | S2: ='PRC model'!S12 ->  | T2: ='PRC model'!T12 ->  | U2: ='PRC model'!U12 -> 
A3: logRD[cm^2/s] | B3: -0.7159824142 | C3: -0.5318885749 | D3: 0.05288009121 | E3: 0.5401873129 | F3: 0.6376487573 | G3: 1.11412693

Sheet rec_fitted_plot
A2: Compound | B2: logKow | C2: logKpw | D2: logRD | E2: fss
A3: 1 | B3: 4.46 | C3: =0.947*B3-0.017 -> 4.20662 | D3: =B3*'PRC model'!$B$32+'PRC model'!$C$32 -> -2.026297388 | E3: =IF((10^D3)*t*86400/((Lo^2-Li^2)/2/Lo)^2/(10^C3)^2<700, 1-EXP((10^D3)*t*86400/((Lo^2-Li^2)/2/Lo)^2/(10^C3)^2)*ERFC((10^D3) ^ 0.5*(t*86400)^ 0.5/((Lo^2-Li^2)/2/Lo)/(10^C3)), 1-1/((10^D3)*t*86400/((Lo^2-Li^2)/2/Lo)^2/(10^C3)^2*3.14)^0.5) -> 0.8185554895
A4: 4 | B4: 4.65 | C4: =0.947*B4-0.017 -> 4.38655 | D4: =B4*'PRC model'!$B$32+'PRC model'!$C$32 -> -1.82054545 | E4: =IF((10^D4)*t*86400/((Lo^2-Li^2)/2/Lo)^2/(10^C4)^2<700, 1-EXP((10^D4)*t*86400/((Lo^2-Li^2)/2/Lo)^2/(10^C4)^2)*ERFC((10^D4) ^ 0.5*(t*86400)^ 0.5/((Lo^2-Li^2)/2/Lo)/(10^C4)), 1-1/((10^D4)*t*86400/((Lo^2-Li^2)/2/Lo)^2/(10^C4)^2*3.14)^0.5) -> 0.7873291299
A5: 10 | B5: 4.84 | C5: 4.56648 | D5: =B5*'PRC model'!$B$32+'PRC model'!$C$32 -> -1.614793512 | E5: 0.7521569781
A6: 9 | B6: 5.06 | C6: 4.77482 | D6: =B6*'PRC model'!$B$32+'PRC model'!$C$32 -> -1.376554426 | E6: 0.7066612527
A7: 7 | B7: 5.07 | C7: 4.78429 | D7: =B7*'PRC model'!$B$32+'PRC model'!$C$32 -> -1.365725376 | E7: 0.7044786769
A8: 6 | B8: 5.06 | C8: 4.77482 | D8: =B8*'PRC model'!$B$32+'PRC model'!$C$32 -> -1.376554426 | E8: 0.7066612527
A9: 8 | B9: 5.07 | C9: 4.78429 | D9: =B9*'PRC model'!$B$32+'PRC model'!$C$32 -> -1.365725376 | E9: 0.7044786769
A10: 5 | B10: 4.97 | C10: 4.68959 | D10: =B10*'PRC model'!$B$32+'PRC model'!$C$32 -> -1.47401587 | E10: 0.7258673955
A11: 19 | B11: 5.02 | C11: 4.73694 | D11: =B11*'PRC model'!$B$32+'PRC model'!$C$32 -> -1.419870623 | E11: 0.7152955438
A12: 18 | B12: 5.24 | C12: 4.94528 | D12: =B12*'PRC model'!$B$32+'PRC model'!$C$32 -> -1.181631537 | E12: 0.6659941576
A13: 17 | B13: 5.25 | C13: 4.95475 | D13: =B13*'PRC model'!$B$32+'PRC model'!$C$32 -> -1.170802488 | E13: 0.6636542036
A14: 27 | B14: 5.44 | C14: 5.13468 | D14: =B14*'PRC model'!$B$32+'PRC model'!$C$32 -> -0.9650505497 | E14: 0.6178318044
A15: 24 | B15: 5.35 | C15: 5.04945 | D15: =B15*'PRC model'!$B$32+'PRC model'!$C$32 -> -1.062511994 | E15: 0.6398410469
A16: 32 | B16: 5.44 | C16: 5.13468 | D16: =B16*'PRC model'!$B$32+'PRC model'!$C$32 -> -0.9650505497 | E16: 0.6178318044
A17: 16 | B17: 5.16 | C17: 4.86952 | D17: =B17*'PRC model'!$B$32+'PRC model'!$C$32 -> -1.268263932 | E17: 0.6844192101
A18: 26 | B18: 5.66 | C18: 5.34302 | D18: =B18*'PRC model'!$B$32+'PRC model'!$C$32 -> -0.7268114635 | E18: 0.5623252284
A19: 25 | B19: 5.67 | C19: 5.35249 | D19: =B19*'PRC model'!$B$32+'PRC model'!$C$32 -> -0.7159824142 | E19: 0.5597616196
A20: 31 | B20: 5.67 | C20: 5.35249 | D20: =B20*'PRC model'!$B$32+'PRC model'!$C$32 -> -0.7159824142 | E20: 0.5597616196
A21: 28 | B21: 5.67 | C21: 5.35249 | D21: =B21*'PRC model'!$B$32+'PRC model'!$C$32 -> -0.7159824142 | E21: 0.5597616196
A22: 20 | B22: 5.57 | C22: 5.25779 | D22: =B22*'PRC model'!$B$32+'PRC model'!$C$32 -> -0.8242729079 | E22: 0.585266683
A23: 22 | B23: 5.58 | C23: 5.26726 | D23: =B23*'PRC model'!$B$32+'PRC model'!$C$32 -> -0.8134438585 | E23: 0.5827310139
A24: 52 | B24: 5.84 | C24: 5.51348 | D24: =B24*'PRC model'!$B$32+'PRC model'!$C$32 -> -0.5318885749 | E24: 0.5159366854
A25: 47 | B25: 5.85 | C25: 5.52295 | D25: =B25*'PRC model'!$B$32+'PRC model'!$C$32 -> -0.5210595255 | E25: 0.513352826
A26: 44 | B26: 5.75 | C26: 5.42825 | D26: =B26*'PRC model'!$B$32+'PRC model'!$C$32 -> -0.6293500192 | E26: 0.5391795053
A27: 42 | B27: 5.76 | C27: 5.43772 | D27: =B27*'PRC model'!$B$32+'PRC model'!$C$32 -> -0.6185209698 | E27: 0.5365997964
A28: 71 | B28: 5.98 | C28: 5.64606 | D28: =B28*'PRC model'!$B$32+'PRC model'!$C$32 -> -0.3802818837 | E28: 0.4798401905
A29: 41 | B29: 5.69 | C29: 5.37143 | D29: =B29*'PRC model'!$B$32+'PRC model'!$C$32 -> -0.6943243154 | E29: 0.5546274157
A30: 103 | B30: 6.22 | C30: 5.87334 | D30: =B30*'PRC model'!$B$32+'PRC model'!$C$32 -> -0.1203846987 | E30: 0.4191297999
A31: 40 | B31: 5.66 | C31: 5.34302 | D31: =B31*'PRC model'!$B$32+'PRC model'!$C$32 -> -0.7268114635 | E31: 0.5623252284
A32: 74 | B32: 6.2 | C32: 5.8544 | D32: =B32*'PRC model'!$B$32+'PRC model'!$C$32 -> -0.1420427975 | E32: 0.4240978708
A33: 70 | B33: 6.2 | C33: 5.8544 | D33: =B33*'PRC model'!$B$32+'PRC model'!$C$32 -> -0.1420427975 | E33: 0.4240978708
A34: 66 | B34: 6.2 | C34: 5.8544 | D34: =B34*'PRC model'!$B$32+'PRC model'!$C$32 -> -0.1420427975 | E34: 0.4240978708
A35: 95 | B35: 6.13 | C35: 5.78811 | D35: =B35*'PRC model'!$B$32+'PRC model'!$C$32 -> -0.2178461431 | E35: =IF((10^D35)*t*86400/((Lo^2-Li^2)/2/Lo)^2/(10^C35)^2<700, 1-EXP((10^D35)*t*86400/((Lo^2-Li^2)/2/Lo)^2/(10^C35)^2)*ERFC((10^D35) ^ 0.5*(t*86400)^ 0.5/((Lo^2-Li^2)/2/Lo)/(10^C35)), 1-1/((10^D35)*t*86400/((Lo^2-Li^2)/2/Lo)^2/(10^C35)^2*3.14)^0.5) -> 0.4416361884
A36: 93 | B36: 6.04 | C36: 5.70288 | D36: =B36*'PRC model'!$B$32+'PRC model'!$C$32 -> -0.3153075874 | E36: 0.4644754335
A37: 56 | B37: 6.11 | C37: 5.76917 | D37: =B37*'PRC model'!$B$32+'PRC model'!$C$32 -> -0.2395042418 | E37: 0.4466860272
A38: 60 | B38: 6.11 | C38: 5.76917 | D38: =B38*'PRC model'!$B$32+'PRC model'!$C$32 -> -0.2395042418 | E38: 0.4466860272
A39: 92 | B39: 6.35 | C39: 5.99645 | D39: =B39*'PRC model'!$B$32+'PRC model'!$C$32 -> 0.0203929431 | E39: 0.3873828725
A40: 84 | B40: 6.04 | C40: 5.70288 | D40: =B40*'PRC model'!$B$32+'PRC model'!$C$32 -> -0.3153075874 | E40: 0.4644754335
A41: 101 | B41: 6.38 | C41: 6.02486 | D41: =B41*'PRC model'!$B$32+'PRC model'!$C$32 -> 0.05288009121 | E41: 0.380206075
A42: 99 | B42: 6.39 | C42: 6.03433 | D42: =B42*'PRC model'!$B$32+'PRC model'!$C$32 -> 0.06370914058 | E42: 0.377827377
A43: 119 | B43: 6.58 | C43: 6.21426 | D43: =B43*'PRC model'!$B$32+'PRC model'!$C$32 -> 0.2694610786 | E43: 0.3340456437
A44: 83 | B44: 6.26 | C44: 5.91122 | D44: =B44*'PRC model'!$B$32+'PRC model'!$C$32 -> -0.07706850125 | E44: 0.4092568714
A45: 87 | B45: 6.29 | C45: 5.93963 | D45: =B45*'PRC model'!$B$32+'PRC model'!$C$32 -> -0.04458135313 | E45: 0.4019109879
A46: 81 | B46: 6.36 | C46: 6.00592 | D46: =B46*'PRC model'!$B$32+'PRC model'!$C$32 -> 0.03122199247 | E46: 0.3849839164
A47: 136 | B47: 6.22 | C47: 5.87334 | D47: =B47*'PRC model'!$B$32+'PRC model'!$C$32 -> -0.1203846987 | E47: 0.4191297999
A48: 110 | B48: 6.48 | C48: 6.11956 | D48: =B48*'PRC model'!$B$32+'PRC model'!$C$32 -> 0.1611705849 | E48: 0.3567417648
A49: 77 | B49: 6.36 | C49: 6.00592 | D49: =B49*'PRC model'!$B$32+'PRC model'!$C$32 -> 0.03122199247 | E49: 0.3849839164
A50: 82 | B50: 6.2 | C50: 5.8544 | D50: =B50*'PRC model'!$B$32+'PRC model'!$C$32 -> -0.1420427975 | E50: 0.4240978708
A51: 151 | B51: 6.64 | C51: 6.27108 | D51: =B51*'PRC model'!$B$32+'PRC model'!$C$32 -> 0.3344353749 | E51: 0.3208264489
A52: 135 | B52: 6.64 | C52: 6.27108 | D52: =B52*'PRC model'!$B$32+'PRC model'!$C$32 -> 0.3344353749 | E52: 0.3208264489
A53: 144 | B53: 6.67 | C53: 6.29949 | D53: =B53*'PRC model'!$B$32+'PRC model'!$C$32 -> 0.366922523 | E53: 0.3143341228
A54: 107 | B54: 6.71 | C54: 6.33737 | D54: =B54*'PRC model'!$B$32+'PRC model'!$C$32 -> 0.4102387205 | E54: 0.3058024839
A55: 123 | B55: 6.74 | C55: 6.36578 | D55: =B55*'PRC model'!$B$32+'PRC model'!$C$32 -> 0.4427258686 | E55: 0.2994989871
A56: 149 | B56: 6.67 | C56: 6.29949 | D56: =B56*'PRC model'!$B$32+'PRC model'!$C$32 -> 0.366922523 | E56: 0.3143341228
A57: 118 | B57: 6.74 | C57: 6.36578 | D57: =B57*'PRC model'!$B$32+'PRC model'!$C$32 -> 0.4427258686 | E57: 0.2994989871
A58: 134 | B58: 6.55 | C58: 6.18585 | D58: =B58*'PRC model'!$B$32+'PRC model'!$C$32 -> 0.2369739305 | E58: 0.3407693673
A59: 146 | B59: 6.89 | C59: 6.50783 | D59: =B59*'PRC model'!$B$32+'PRC model'!$C$32 -> 0.6051616092 | E59: 0.2692436248
A60: 153 | B60: 6.92 | C60: 6.53624 | D60: =B60*'PRC model'!$B$32+'PRC model'!$C$32 -> 0.6376487573 | E60: 0.2634506024
A61: 132 | B61: 6.58 | C61: 6.21426 | D61: =B61*'PRC model'!$B$32+'PRC model'!$C$32 -> 0.2694610786 | E61: 0.3340456437
A62: 105 | B62: 6.65 | C62: 6.28055 | D62: =B62*'PRC model'!$B$32+'PRC model'!$C$32 -> 0.3452644242 | E62: 0.3186535261
A63: 141 | B63: 6.82 | C63: 6.44154 | D63: =B63*'PRC model'!$B$32+'PRC model'!$C$32 -> 0.5293582636 | E63: 0.2830976303
A64: 179 | B64: 6.73 | C64: 6.35631 | D64: =B64*'PRC model'!$B$32+'PRC model'!$C$32 -> 0.4318968192 | E64: 0.3015909958
A65: 163 | B65: 6.99 | C65: 6.60253 | D65: =B65*'PRC model'!$B$32+'PRC model'!$C$32 -> 0.7134521029 | E65: 0.2502741574
A66: 138 | B66: 6.83 | C66: 6.45101 | D66: =B66*'PRC model'!$B$32+'PRC model'!$C$32 -> 0.5401873129 | E66: 0.2810898147
A67: 158 | B67: 7.02 | C67: 6.63094 | D67: =B67*'PRC model'!$B$32+'PRC model'!$C$32 -> 0.745939251 | E67: =IF((10^D67)*t*86400/((Lo^2-Li^2)/2/Lo)^2/(10^C67)^2<700, 1-EXP((10^D67)*t*86400/((Lo^2-Li^2)/2/Lo)^2/(10^C67)^2)*ERFC((10^D67) ^ 0.5*(t*86400)^ 0.5/((Lo^2-Li^2)/2/Lo)/(10^C67)), 1-1/((10^D67)*t*86400/((Lo^2-Li^2)/2/Lo)^2/(10^C67)^2*3.14)^0.5) -> 0.2447738998
A68: 178 | B68: 7.14 | C68: =0.947*B68-0.017 -> 6.74458 | D68: =B68*'PRC model'!$B$32+'PRC model'!$C$32 -> 0.8758878435 | E68: 0.2236573718
A69: 187 | B69: 7.17 | C69: 6.77299 | D69: =B69*'PRC model'!$B$32+'PRC model'!$C$32 -> 0.9083749916 | E69: 0.2185992722
A70: 183 | B70: 7.2 | C70: 6.8014 | D70: =B70*'PRC model'!$B$32+'PRC model'!$C$32 -> 0.9408621397 | E70: 0.2136292795
A71: 128 | B71: 6.74 | C71: 6.36578 | D71: =B71*'PRC model'!$B$32+'PRC model'!$C$32 -> 0.4427258686 | E71: 0.2994989871
A72: 167 | B72: 7.27 | C72: 6.86769 | D72: =B72*'PRC model'!$B$32+'PRC model'!$C$32 -> 1.016665485 | E72: 0.2023735804
A73: 174 | B73: 7.11 | C73: 6.71617 | D73: =B73*'PRC model'!$B$32+'PRC model'!$C$32 -> 0.8434006953 | E73: 0.2288037869
A74: 177 | B74: 7.08 | C74: 6.68776 | D74: =B74*'PRC model'!$B$32+'PRC model'!$C$32 -> 0.8109135472 | E74: 0.2340386534
A75: 171 | B75: 7.11 | C75: 6.71617 | D75: =B75*'PRC model'!$B$32+'PRC model'!$C$32 -> 0.8434006953 | E75: 0.2288037869
A76: 156 | B76: 7.18 | C76: 6.78246 | D76: =B76*'PRC model'!$B$32+'PRC model'!$C$32 -> 0.9192040409 | E76: 0.2169328307
A77: 157 | B77: 7.18 | C77: 6.78246 | D77: =B77*'PRC model'!$B$32+'PRC model'!$C$32 -> 0.9192040409 | E77: 0.2169328307
A78: 173 | B78: 7.02 | C78: 6.63094 | D78: =B78*'PRC model'!$B$32+'PRC model'!$C$32 -> 0.745939251 | E78: 0.2447738998
A79: 172 | B79: 7.33 | C79: 6.92451 | D79: =B79*'PRC model'!$B$32+'PRC model'!$C$32 -> 1.081639782 | E79: 0.19310266
A80: 180 | B80: 7.36 | C80: 6.95292 | D80: =B80*'PRC model'!$B$32+'PRC model'!$C$32 -> 1.11412693 | E80: 0.1885963163
A81: 193 | B81: 7.52 | C81: 7.10444 | D81: =B81*'PRC model'!$B$32+'PRC model'!$C$32 -> 1.28739172 | E81: 0.1659864802
A82: 191 | B82: 7.55 | C82: 7.13285 | D82: =B82*'PRC model'!$B$32+'PRC model'!$C$32 -> 1.319878868 | E82: 0.1620084118
A83: 170 | B83: 7.27 | C83: 6.86769 | D83: =B83*'PRC model'!$B$32+'PRC model'!$C$32 -> 1.016665485 | E83: 0.2023735804
A84: 190 | B84: 7.46 | C84: 7.04762 | D84: =B84*'PRC model'!$B$32+'PRC model'!$C$32 -> 1.222417423 | E84: 0.1741875277
A85: 198 | B85: 7.62 | C85: 7.19914 | D85: =B85*'PRC model'!$B$32+'PRC model'!$C$32 -> 1.395682213 | E85: 0.1530377695
A86: 203 | B86: 7.65 | C86: 7.22755 | D86: =B86*'PRC model'!$B$32+'PRC model'!$C$32 -> 1.428169361 | E86: 0.1493245234
A87: 196 | B87: 7.65 | C87: 7.22755 | D87: =B87*'PRC model'!$B$32+'PRC model'!$C$32 -> 1.428169361 | E87: 0.1493245234
A88: 195 | B88: 7.56 | C88: 7.14232 | D88: =B88*'PRC model'!$B$32+'PRC model'!$C$32 -> 1.330707917 | E88: 0.1607003217
A89: 194 | B89: 7.8 | C89: 7.3696 | D89: =B89*'PRC model'!$B$32+'PRC model'!$C$32 -> 1.590605102 | E89: 0.1318997269
A90: 209 | B90: 8.18 | C90: 7.72946 | D90: =B90*'PRC model'!$B$32+'PRC model'!$C$32 -> 2.002108978 | E90: 0.09553812745

Sheet fitted_ke
B1: PRC#
B2: ='PRC model'!B12 -> 1 | C2: ='PRC model'!C12 -> 2 | D2: ='PRC model'!D12 -> 3 | E2: ='PRC model'!E12 -> 4 | F2: ='PRC model'!F12 -> 5 | G2: ='PRC model'!G12 -> 6 | H2: ='PRC model'!H12 ->  | I2: ='PRC model'!I12 ->  | J2: ='PRC model'!J12 ->  | K2: ='PRC model'!K12 ->  | L2: ='PRC model'!L12 ->  | M2: ='PRC model'!M12 ->  | N2: ='PRC model'!N12 ->  | O2: ='PRC model'!O12 ->  | P2: ='PRC model'!P12 ->  | Q2: ='PRC model'!Q12 ->  | R2: ='PRC model'!R12 ->  | S2: ='PRC model'!S12 ->  | T2: ='PRC model'!T12 ->  | U2: ='PRC model'!U12 -> 
A3: pke[/day] | B3: -1.566676269 | C3: -1.563825109 | D3: -1.838253806 | E3: -1.961808667 | F3: -2.250047891 | G3: -1.917799734

Sheet kinetic_fitted_plot
A2: Compound | B2: logKow | C2: logke | D2: fss
A3: 1 | B3: 4.46 | C3: =B3*'PRC model'!$B$28+'PRC model'!$C$28 -> -1.200468418 | D3: =1-EXP(10^C3*t*-1) -> 0.8490537604
A4: 4 | B4: 4.65 | C4: =B4*'PRC model'!$B$28+'PRC model'!$C$28 -> -1.260939348 | D4: 0.8069991376
A5: 10 | B5: 4.84 | C5: =B5*'PRC model'!$B$28+'PRC model'!$C$28 -> -1.321410278 | D5: 0.7609864643
A6: 9 | B6: 5.06 | C6: =B6*'PRC model'!$B$28+'PRC model'!$C$28 -> -1.39142925 | D6: 0.7042158804
A7: 7 | B7: 5.07 | C7: =B7*'PRC model'!$B$28+'PRC model'!$C$28 -> -1.39461193 | D7: 0.701573362
A8: 6 | B8: 5.06 | C8: =B8*'PRC model'!$B$28+'PRC model'!$C$28 -> -1.39142925 | D8: 0.7042158804
A9: 8 | B9: 5.07 | C9: =B9*'PRC model'!$B$28+'PRC model'!$C$28 -> -1.39461193 | D9: 0.701573362
A10: 5 | B10: 4.97 | C10: =B10*'PRC model'!$B$28+'PRC model'!$C$28 -> -1.362785125 | D10: 0.7277885857
A11: 19 | B11: 5.02 | C11: =B11*'PRC model'!$B$28+'PRC model'!$C$28 -> -1.378698528 | D11: 0.714742082
A12: 18 | B12: 5.24 | C12: =B12*'PRC model'!$B$28+'PRC model'!$C$28 -> -1.448717499 | D12: 0.6561632082
A13: 17 | B13: 5.25 | C13: =B13*'PRC model'!$B$28+'PRC model'!$C$28 -> -1.45190018 | D13: 0.6534724898
A14: 27 | B14: 5.44 | C14: =B14*'PRC model'!$B$28+'PRC model'!$C$28 -> -1.51237111 | D14: 0.6022934323
A15: 24 | B15: 5.35 | C15: =B15*'PRC model'!$B$28+'PRC model'!$C$28 -> -1.483726985 | D15: 0.6265252331
A16: 32 | B16: 5.44 | C16: =B16*'PRC model'!$B$28+'PRC model'!$C$28 -> -1.51237111 | D16: 0.6022934323
A17: 16 | B17: 5.16 | C17: =B17*'PRC model'!$B$28+'PRC model'!$C$28 -> -1.423256055 | D17: 0.6776279394
A18: 26 | B18: 5.66 | C18: =B18*'PRC model'!$B$28+'PRC model'!$C$28 -> -1.582390082 | D18: 0.5437661294
A19: 25 | B19: 5.67 | C19: =B19*'PRC model'!$B$28+'PRC model'!$C$28 -> -1.585572762 | D19: 0.541144436
A20: 31 | B20: 5.67 | C20: =B20*'PRC model'!$B$28+'PRC model'!$C$28 -> -1.585572762 | D20: 0.541144436
A21: 28 | B21: 5.67 | C21: =B21*'PRC model'!$B$28+'PRC model'!$C$28 -> -1.585572762 | D21: 0.541144436
A22: 20 | B22: 5.57 | C22: =B22*'PRC model'!$B$28+'PRC model'!$C$28 -> -1.553745957 | D22: 0.5675347706
A23: 22 | B23: 5.58 | C23: =B23*'PRC model'!$B$28+'PRC model'!$C$28 -> -1.556928637 | D23: 0.564879709
A24: 52 | B24: 5.84 | C24: =B24*'PRC model'!$B$28+'PRC model'!$C$28 -> -1.639678331 | D24: 0.4973039257
A25: 47 | B25: 5.85 | C25: =B25*'PRC model'!$B$28+'PRC model'!$C$28 -> -1.642861012 | D25: 0.4947731263
A26: 44 | B26: 5.75 | C26: =B26*'PRC model'!$B$28+'PRC model'!$C$28 -> -1.611034206 | D26: 0.520332012
A27: 42 | B27: 5.76 | C27: =B27*'PRC model'!$B$28+'PRC model'!$C$28 -> -1.614216887 | D27: 0.5177520608
A28: 71 | B28: 5.98 | C28: =B28*'PRC model'!$B$28+'PRC model'!$C$28 -> -1.684235859 | D28: 0.4624347967
A29: 41 | B29: 5.69 | C29: =B29*'PRC model'!$B$28+'PRC model'!$C$28 -> -1.591938123 | D29: 0.5359138777
A30: 103 | B30: 6.22 | C30: =B30*'PRC model'!$B$28+'PRC model'!$C$28 -> -1.760620191 | D30: 0.4058338492
A31: 40 | B31: 5.66 | C31: =B31*'PRC model'!$B$28+'PRC model'!$C$28 -> -1.582390082 | D31: 0.5437661294
A32: 74 | B32: 6.2 | C32: =B32*'PRC model'!$B$28+'PRC model'!$C$28 -> -1.75425483 | D32: 0.4103833762
A33: 70 | B33: 6.2 | C33: =B33*'PRC model'!$B$28+'PRC model'!$C$28 -> -1.75425483 | D33: 0.4103833762
A34: 66 | B34: 6.2 | C34: =B34*'PRC model'!$B$28+'PRC model'!$C$28 -> -1.75425483 | D34: 0.4103833762
A35: 95 | B35: 6.13 | C35: =B35*'PRC model'!$B$28+'PRC model'!$C$28 -> -1.731976066 | D35: =1-EXP(10^C35*t*-1) -> 0.4265532122
A36: 93 | B36: 6.04 | C36: =B36*'PRC model'!$B$28+'PRC model'!$C$28 -> -1.703331942 | D36: 0.4478877615
A37: 56 | B37: 6.11 | C37: =B37*'PRC model'!$B$28+'PRC model'!$C$28 -> -1.725610705 | D37: 0.4312422307
A38: 60 | B38: 6.11 | C38: =B38*'PRC model'!$B$28+'PRC model'!$C$28 -> -1.725610705 | D38: 0.4312422307
A39: 92 | B39: 6.35 | C39: =B39*'PRC model'!$B$28+'PRC model'!$C$28 -> -1.801995038 | D39: 0.3770498555
A40: 84 | B40: 6.04 | C40: =B40*'PRC model'!$B$28+'PRC model'!$C$28 -> -1.703331942 | D40: 0.4478877615
A41: 101 | B41: 6.38 | C41: =B41*'PRC model'!$B$28+'PRC model'!$C$28 -> -1.81154308 | D41: 0.370605478
A42: 99 | B42: 6.39 | C42: =B42*'PRC model'!$B$28+'PRC model'!$C$28 -> -1.81472576 | D42: 0.3684741328
A43: 119 | B43: 6.58 | C43: =B43*'PRC model'!$B$28+'PRC model'!$C$28 -> -1.87519669 | D43: 0.3295963509
A44: 83 | B44: 6.26 | C44: =B44*'PRC model'!$B$28+'PRC model'!$C$28 -> -1.773350913 | D44: 0.3968306334
A45: 87 | B45: 6.29 | C45: =B45*'PRC model'!$B$28+'PRC model'!$C$28 -> -1.782898955 | D45: 0.3901631226
A46: 81 | B46: 6.36 | C46: =B46*'PRC model'!$B$28+'PRC model'!$C$28 -> -1.805177719 | D46: 0.3748933603
A47: 136 | B47: 6.22 | C47: =B47*'PRC model'!$B$28+'PRC model'!$C$28 -> -1.760620191 | D47: 0.4058338492
A48: 110 | B48: 6.48 | C48: =B48*'PRC model'!$B$28+'PRC model'!$C$28 -> -1.843369885 | D48: 0.3496731575
A49: 77 | B49: 6.36 | C49: =B49*'PRC model'!$B$28+'PRC model'!$C$28 -> -1.805177719 | D49: 0.3748933603
A50: 82 | B50: 6.2 | C50: =B50*'PRC model'!$B$28+'PRC model'!$C$28 -> -1.75425483 | D50: 0.4103833762
A51: 151 | B51: 6.64 | C51: =B51*'PRC model'!$B$28+'PRC model'!$C$28 -> -1.894292773 | D51: 0.3179645082
A52: 135 | B52: 6.64 | C52: =B52*'PRC model'!$B$28+'PRC model'!$C$28 -> -1.894292773 | D52: 0.3179645082
A53: 144 | B53: 6.67 | C53: =B53*'PRC model'!$B$28+'PRC model'!$C$28 -> -1.903840815 | D53: 0.3122653806
A54: 107 | B54: 6.71 | C54: =B54*'PRC model'!$B$28+'PRC model'!$C$28 -> -1.916571537 | D54: 0.3047876355
A55: 123 | B55: 6.74 | C55: =B55*'PRC model'!$B$28+'PRC model'!$C$28 -> -1.926119579 | D55: 0.2992700426
A56: 149 | B56: 6.67 | C56: =B56*'PRC model'!$B$28+'PRC model'!$C$28 -> -1.903840815 | D56: 0.3122653806
A57: 118 | B57: 6.74 | C57: =B57*'PRC model'!$B$28+'PRC model'!$C$28 -> -1.926119579 | D57: 0.2992700426
A58: 134 | B58: 6.55 | C58: =B58*'PRC model'!$B$28+'PRC model'!$C$28 -> -1.865648649 | D58: 0.3355289496
A59: 146 | B59: 6.89 | C59: =B59*'PRC model'!$B$28+'PRC model'!$C$28 -> -1.973859787 | D59: 0.2728420158
A60: 153 | B60: 6.92 | C60: =B60*'PRC model'!$B$28+'PRC model'!$C$28 -> -1.983407828 | D60: 0.2677865603
A61: 132 | B61: 6.58 | C61: =B61*'PRC model'!$B$28+'PRC model'!$C$28 -> -1.87519669 | D61: 0.3295963509
A62: 105 | B62: 6.65 | C62: =B62*'PRC model'!$B$28+'PRC model'!$C$28 -> -1.897475454 | D62: 0.3160561464
A63: 141 | B63: 6.82 | C63: =B63*'PRC model'!$B$28+'PRC model'!$C$28 -> -1.951581023 | D63: 0.2849353865
A64: 179 | B64: 6.73 | C64: =B64*'PRC model'!$B$28+'PRC model'!$C$28 -> -1.922936898 | D64: 0.3011006091
A65: 163 | B65: 6.99 | C65: =B65*'PRC model'!$B$28+'PRC model'!$C$28 -> -2.005686592 | D65: 0.2562850483
A66: 138 | B66: 6.83 | C66: =B66*'PRC model'!$B$28+'PRC model'!$C$28 -> -1.954763704 | D66: 0.2831821692
A67: 158 | B67: 7.02 | C67: =B67*'PRC model'!$B$28+'PRC model'!$C$28 -> -2.015234634 | D67: =1-EXP(10^C67*t*-1) -> 0.2514810284
A68: 178 | B68: 7.14 | C68: =B68*'PRC model'!$B$28+'PRC model'!$C$28 -> -2.0534268 | D68: 0.2330041273
A69: 187 | B69: 7.17 | C69: =B69*'PRC model'!$B$28+'PRC model'!$C$28 -> -2.062974842 | D69: 0.2285669641
A70: 183 | B70: 7.2 | C70: =B70*'PRC model'!$B$28+'PRC model'!$C$28 -> -2.072522883 | D70: 0.2242014509
A71: 128 | B71: 6.74 | C71: =B71*'PRC model'!$B$28+'PRC model'!$C$28 -> -1.926119579 | D71: 0.2992700426
A72: 167 | B72: 7.27 | C72: =B72*'PRC model'!$B$28+'PRC model'!$C$28 -> -2.094801647 | D72: 0.2142903517
A73: 174 | B73: 7.11 | C73: =B73*'PRC model'!$B$28+'PRC model'!$C$28 -> -2.043878758 | D73: 0.2375135446
A74: 177 | B74: 7.08 | C74: =B74*'PRC model'!$B$28+'PRC model'!$C$28 -> -2.034330717 | D74: 0.2420957983
A75: 171 | B75: 7.11 | C75: =B75*'PRC model'!$B$28+'PRC model'!$C$28 -> -2.043878758 | D75: 0.2375135446
A76: 156 | B76: 7.18 | C76: =B76*'PRC model'!$B$28+'PRC model'!$C$28 -> -2.066157522 | D76: 0.2271038624
A77: 157 | B77: 7.18 | C77: =B77*'PRC model'!$B$28+'PRC model'!$C$28 -> -2.066157522 | D77: 0.2271038624
A78: 173 | B78: 7.02 | C78: =B78*'PRC model'!$B$28+'PRC model'!$C$28 -> -2.015234634 | D78: 0.2514810284
A79: 172 | B79: 7.33 | C79: =B79*'PRC model'!$B$28+'PRC model'!$C$28 -> -2.11389773 | D79: 0.2060965894
A80: 180 | B80: 7.36 | C80: =B80*'PRC model'!$B$28+'PRC model'!$C$28 -> -2.123445772 | D80: 0.202102239
A81: 193 | B81: 7.52 | C81: =B81*'PRC model'!$B$28+'PRC model'!$C$28 -> -2.17436866 | D81: 0.1819197659
A82: 191 | B82: 7.55 | C82: =B82*'PRC model'!$B$28+'PRC model'!$C$28 -> -2.183916702 | D82: 0.1783399418
A83: 170 | B83: 7.27 | C83: =B83*'PRC model'!$B$28+'PRC model'!$C$28 -> -2.094801647 | D83: 0.2142903517
A84: 190 | B84: 7.46 | C84: =B84*'PRC model'!$B$28+'PRC model'!$C$28 -> -2.155272577 | D84: 0.1892705389
A85: 198 | B85: 7.62 | C85: =B85*'PRC model'!$B$28+'PRC model'!$C$28 -> -2.206195465 | D85: 0.1702294646
A86: 203 | B86: 7.65 | C86: =B86*'PRC model'!$B$28+'PRC model'!$C$28 -> -2.215743507 | D86: 0.1668555821
A87: 196 | B87: 7.65 | C87: =B87*'PRC model'!$B$28+'PRC model'!$C$28 -> -2.215743507 | D87: 0.1668555821
A88: 195 | B88: 7.56 | C88: =B88*'PRC model'!$B$28+'PRC model'!$C$28 -> -2.187099382 | D88: 0.1771606356
A89: 194 | B89: 7.8 | C89: =B89*'PRC model'!$B$28+'PRC model'!$C$28 -> -2.263483715 | D89: 0.1508717986
A90: 209 | B90: 8.18 | C90: =B90*'PRC model'!$B$28+'PRC model'!$C$28 -> -2.384425575 | D90: 0.1164371778

Sheet Kow_fitting
A1: log(Kow) | B1: log(ke) | C1: log(RD) | D1: log(R )
A2: 4 | B2: ='PRC model'!$B$28*A2+'PRC model'!$C$28 -> -1.054065114 | C2: ='PRC model'!$B$32*A2+'PRC model'!$C$32 -> -2.524433659 | D2: ='PRC model'!$B$36*A2+'PRC model'!$C$36 -> 0.2695597549
A3: =A2+0.1 -> 4.1 | B3: ='PRC model'!$B$28*A3+'PRC model'!$C$28 -> -1.085891919 | C3: ='PRC model'!$B$32*A3+'PRC model'!$C$32 -> -2.416143166 | D3: ='PRC model'!$B$36*A3+'PRC model'!$C$36 -> 0.4486248504
A4: =A3+0.1 -> 4.2 | B4: ='PRC model'!$B$28*A4+'PRC model'!$C$28 -> -1.117718724 | C4: ='PRC model'!$B$32*A4+'PRC model'!$C$32 -> -2.307852672 | D4: ='PRC model'!$B$36*A4+'PRC model'!$C$36 -> 0.6276899459
A5: 4.3 | B5: ='PRC model'!$B$28*A5+'PRC model'!$C$28 -> -1.14954553 | C5: ='PRC model'!$B$32*A5+'PRC model'!$C$32 -> -2.199562178 | D5: ='PRC model'!$B$36*A5+'PRC model'!$C$36 -> 0.8067550414
A6: 4.4 | B6: ='PRC model'!$B$28*A6+'PRC model'!$C$28 -> -1.181372335 | C6: ='PRC model'!$B$32*A6+'PRC model'!$C$32 -> -2.091271684 | D6: ='PRC model'!$B$36*A6+'PRC model'!$C$36 -> 0.9858201369
A7: 4.5 | B7: ='PRC model'!$B$28*A7+'PRC model'!$C$28 -> -1.21319914 | C7: ='PRC model'!$B$32*A7+'PRC model'!$C$32 -> -1.982981191 | D7: ='PRC model'!$B$36*A7+'PRC model'!$C$36 -> 1.164885232
A8: 4.6 | B8: ='PRC model'!$B$28*A8+'PRC model'!$C$28 -> -1.245025945 | C8: ='PRC model'!$B$32*A8+'PRC model'!$C$32 -> -1.874690697 | D8: ='PRC model'!$B$36*A8+'PRC model'!$C$36 -> 1.343950328
A9: 4.7 | B9: ='PRC model'!$B$28*A9+'PRC model'!$C$28 -> -1.276852751 | C9: ='PRC model'!$B$32*A9+'PRC model'!$C$32 -> -1.766400203 | D9: ='PRC model'!$B$36*A9+'PRC model'!$C$36 -> 1.523015423
A10: 4.8 | B10: ='PRC model'!$B$28*A10+'PRC model'!$C$28 -> -1.308679556 | C10: ='PRC model'!$B$32*A10+'PRC model'!$C$32 -> -1.65810971 | D10: ='PRC model'!$B$36*A10+'PRC model'!$C$36 -> 1.702080519
A11: 4.9 | B11: ='PRC model'!$B$28*A11+'PRC model'!$C$28 -> -1.340506361 | C11: ='PRC model'!$B$32*A11+'PRC model'!$C$32 -> -1.549819216 | D11: ='PRC model'!$B$36*A11+'PRC model'!$C$36 -> 1.881145614
A12: 5 | B12: ='PRC model'!$B$28*A12+'PRC model'!$C$28 -> -1.372333167 | C12: ='PRC model'!$B$32*A12+'PRC model'!$C$32 -> -1.441528722 | D12: ='PRC model'!$B$36*A12+'PRC model'!$C$36 -> 2.06021071
A13: 5.1 | B13: ='PRC model'!$B$28*A13+'PRC model'!$C$28 -> -1.404159972 | C13: ='PRC model'!$B$32*A13+'PRC model'!$C$32 -> -1.333238228 | D13: ='PRC model'!$B$36*A13+'PRC model'!$C$36 -> 2.239275805
A14: 5.2 | B14: ='PRC model'!$B$28*A14+'PRC model'!$C$28 -> -1.435986777 | C14: ='PRC model'!$B$32*A14+'PRC model'!$C$32 -> -1.224947735 | D14: ='PRC model'!$B$36*A14+'PRC model'!$C$36 -> 2.418340901
A15: 5.3 | B15: ='PRC model'!$B$28*A15+'PRC model'!$C$28 -> -1.467813583 | C15: ='PRC model'!$B$32*A15+'PRC model'!$C$32 -> -1.116657241 | D15: ='PRC model'!$B$36*A15+'PRC model'!$C$36 -> 2.597405996
A16: 5.4 | B16: ='PRC model'!$B$28*A16+'PRC model'!$C$28 -> -1.499640388 | C16: ='PRC model'!$B$32*A16+'PRC model'!$C$32 -> -1.008366747 | D16: ='PRC model'!$B$36*A16+'PRC model'!$C$36 -> 2.776471092
A17: 5.5 | B17: ='PRC model'!$B$28*A17+'PRC model'!$C$28 -> -1.531467193 | C17: ='PRC model'!$B$32*A17+'PRC model'!$C$32 -> -0.9000762535 | D17: ='PRC model'!$B$36*A17+'PRC model'!$C$36 -> 2.955536187
A18: 5.6 | B18: ='PRC model'!$B$28*A18+'PRC model'!$C$28 -> -1.563293998 | C18: ='PRC model'!$B$32*A18+'PRC model'!$C$32 -> -0.7917857598 | D18: ='PRC model'!$B$36*A18+'PRC model'!$C$36 -> 3.134601283
A19: 5.7 | B19: ='PRC model'!$B$28*A19+'PRC model'!$C$28 -> -1.595120804 | C19: ='PRC model'!$B$32*A19+'PRC model'!$C$32 -> -0.6834952661 | D19: ='PRC model'!$B$36*A19+'PRC model'!$C$36 -> 3.313666378
A20: 5.8 | B20: ='PRC model'!$B$28*A20+'PRC model'!$C$28 -> -1.626947609 | C20: ='PRC model'!$B$32*A20+'PRC model'!$C$32 -> -0.5752047723 | D20: ='PRC model'!$B$36*A20+'PRC model'!$C$36 -> 3.492731474
A21: 5.9 | B21: ='PRC model'!$B$28*A21+'PRC model'!$C$28 -> -1.658774414 | C21: ='PRC model'!$B$32*A21+'PRC model'!$C$32 -> -0.4669142786 | D21: ='PRC model'!$B$36*A21+'PRC model'!$C$36 -> 3.671796569
A22: 6 | B22: ='PRC model'!$B$28*A22+'PRC model'!$C$28 -> -1.69060122 | C22: ='PRC model'!$B$32*A22+'PRC model'!$C$32 -> -0.3586237849 | D22: ='PRC model'!$B$36*A22+'PRC model'!$C$36 -> 3.850861665
A23: 6.1 | B23: ='PRC model'!$B$28*A23+'PRC model'!$C$28 -> -1.722428025 | C23: ='PRC model'!$B$32*A23+'PRC model'!$C$32 -> -0.2503332912 | D23: ='PRC model'!$B$36*A23+'PRC model'!$C$36 -> 4.02992676
A24: 6.2 | B24: ='PRC model'!$B$28*A24+'PRC model'!$C$28 -> -1.75425483 | C24: ='PRC model'!$B$32*A24+'PRC model'!$C$32 -> -0.1420427975 | D24: ='PRC model'!$B$36*A24+'PRC model'!$C$36 -> 4.208991856
A25: 6.3 | B25: ='PRC model'!$B$28*A25+'PRC model'!$C$28 -> -1.786081635 | C25: ='PRC model'!$B$32*A25+'PRC model'!$C$32 -> -0.03375230376 | D25: ='PRC model'!$B$36*A25+'PRC model'!$C$36 -> 4.388056951
A26: 6.4 | B26: ='PRC model'!$B$28*A26+'PRC model'!$C$28 -> -1.817908441 | C26: ='PRC model'!$B$32*A26+'PRC model'!$C$32 -> 0.07453818996 | D26: ='PRC model'!$B$36*A26+'PRC model'!$C$36 -> 4.567122047
A27: 6.5 | B27: ='PRC model'!$B$28*A27+'PRC model'!$C$28 -> -1.849735246 | C27: ='PRC model'!$B$32*A27+'PRC model'!$C$32 -> 0.1828286837 | D27: ='PRC model'!$B$36*A27+'PRC model'!$C$36 -> 4.746187142
A28: 6.6 | B28: ='PRC model'!$B$28*A28+'PRC model'!$C$28 -> -1.881562051 | C28: ='PRC model'!$B$32*A28+'PRC model'!$C$32 -> 0.2911191774 | D28: ='PRC model'!$B$36*A28+'PRC model'!$C$36 -> 4.925252238
A29: 6.7 | B29: ='PRC model'!$B$28*A29+'PRC model'!$C$28 -> -1.913388857 | C29: ='PRC model'!$B$32*A29+'PRC model'!$C$32 -> 0.3994096711 | D29: ='PRC model'!$B$36*A29+'PRC model'!$C$36 -> 5.104317333
A30: 6.8 | B30: ='PRC model'!$B$28*A30+'PRC model'!$C$28 -> -1.945215662 | C30: ='PRC model'!$B$32*A30+'PRC model'!$C$32 -> 0.5077001648 | D30: ='PRC model'!$B$36*A30+'PRC model'!$C$36 -> 5.283382429
A31: 6.9 | B31: ='PRC model'!$B$28*A31+'PRC model'!$C$28 -> -1.977042467 | C31: ='PRC model'!$B$32*A31+'PRC model'!$C$32 -> 0.6159906585 | D31: ='PRC model'!$B$36*A31+'PRC model'!$C$36 -> 5.462447524
A32: 7 | B32: ='PRC model'!$B$28*A32+'PRC model'!$C$28 -> -2.008869273 | C32: ='PRC model'!$B$32*A32+'PRC model'!$C$32 -> 0.7242811523 | D32: ='PRC model'!$B$36*A32+'PRC model'!$C$36 -> 5.64151262
A33: 7.1 | B33: ='PRC model'!$B$28*A33+'PRC model'!$C$28 -> -2.040696078 | C33: ='PRC model'!$B$32*A33+'PRC model'!$C$32 -> 0.832571646 | D33: ='PRC model'!$B$36*A33+'PRC model'!$C$36 -> 5.820577715
A34: 7.2 | B34: ='PRC model'!$B$28*A34+'PRC model'!$C$28 -> -2.072522883 | C34: ='PRC model'!$B$32*A34+'PRC model'!$C$32 -> 0.9408621397 | D34: ='PRC model'!$B$36*A34+'PRC model'!$C$36 -> 5.999642811
A35: 7.3 | B35: ='PRC model'!$B$28*A35+'PRC model'!$C$28 -> -2.104349688 | C35: ='PRC model'!$B$32*A35+'PRC model'!$C$32 -> 1.049152633 | D35: ='PRC model'!$B$36*A35+'PRC model'!$C$36 -> 6.178707906
A36: 7.4 | B36: ='PRC model'!$B$28*A36+'PRC model'!$C$28 -> -2.136176494 | C36: ='PRC model'!$B$32*A36+'PRC model'!$C$32 -> 1.157443127 | D36: ='PRC model'!$B$36*A36+'PRC model'!$C$36 -> 6.357773002
A37: 7.5 | B37: ='PRC model'!$B$28*A37+'PRC model'!$C$28 -> -2.168003299 | C37: ='PRC model'!$B$32*A37+'PRC model'!$C$32 -> 1.265733621 | D37: ='PRC model'!$B$36*A37+'PRC model'!$C$36 -> 6.536838097
A38: 7.6 | B38: ='PRC model'!$B$28*A38+'PRC model'!$C$28 -> -2.199830104 | C38: ='PRC model'!$B$32*A38+'PRC model'!$C$32 -> 1.374024115 | D38: ='PRC model'!$B$36*A38+'PRC model'!$C$36 -> 6.715903193
A39: 7.7 | B39: ='PRC model'!$B$28*A39+'PRC model'!$C$28 -> -2.23165691 | C39: ='PRC model'!$B$32*A39+'PRC model'!$C$32 -> 1.482314608 | D39: ='PRC model'!$B$36*A39+'PRC model'!$C$36 -> 6.894968288
A40: 7.8 | B40: ='PRC model'!$B$28*A40+'PRC model'!$C$28 -> -2.263483715 | C40: ='PRC model'!$B$32*A40+'PRC model'!$C$32 -> 1.590605102 | D40: ='PRC model'!$B$36*A40+'PRC model'!$C$36 -> 7.074033384
A41: 7.9 | B41: ='PRC model'!$B$28*A41+'PRC model'!$C$28 -> -2.29531052 | C41: ='PRC model'!$B$32*A41+'PRC model'!$C$32 -> 1.698895596 | D41: ='PRC model'!$B$36*A41+'PRC model'!$C$36 -> 7.253098479
A42: 8 | B42: ='PRC model'!$B$28*A42+'PRC model'!$C$28 -> -2.327137325 | C42: ='PRC model'!$B$32*A42+'PRC model'!$C$32 -> 1.807186089 | D42: ='PRC model'!$B$36*A42+'PRC model'!$C$36 -> 7.432163575
A43: 8.1 | B43: ='PRC model'!$B$28*A43+'PRC model'!$C$28 -> -2.358964131 | C43: ='PRC model'!$B$32*A43+'PRC model'!$C$32 -> 1.915476583 | D43: ='PRC model'!$B$36*A43+'PRC model'!$C$36 -> 7.61122867
A44: 8.2 | B44: ='PRC model'!$B$28*A44+'PRC model'!$C$28 -> -2.390790936 | C44: ='PRC model'!$B$32*A44+'PRC model'!$C$32 -> 2.023767077 | D44: ='PRC model'!$B$36*A44+'PRC model'!$C$36 -> 7.790293766
A45: 8.3 | B45: ='PRC model'!$B$28*A45+'PRC model'!$C$28 -> -2.422617741 | C45: ='PRC model'!$B$32*A45+'PRC model'!$C$32 -> 2.132057571 | D45: ='PRC model'!$B$36*A45+'PRC model'!$C$36 -> 7.969358861
A46: 8.4 | B46: ='PRC model'!$B$28*A46+'PRC model'!$C$28 -> -2.454444547 | C46: ='PRC model'!$B$32*A46+'PRC model'!$C$32 -> 2.240348064 | D46: ='PRC model'!$B$36*A46+'PRC model'!$C$36 -> 8.148423957
A47: 8.5 | B47: ='PRC model'!$B$28*A47+'PRC model'!$C$28 -> -2.486271352 | C47: ='PRC model'!$B$32*A47+'PRC model'!$C$32 -> 2.348638558 | D47: ='PRC model'!$B$36*A47+'PRC model'!$C$36 -> 8.327489052
A48: 8.6 | B48: ='PRC model'!$B$28*A48+'PRC model'!$C$28 -> -2.518098157 | C48: ='PRC model'!$B$32*A48+'PRC model'!$C$32 -> 2.456929052 | D48: ='PRC model'!$B$36*A48+'PRC model'!$C$36 -> 8.506554148
A49: 8.7 | B49: ='PRC model'!$B$28*A49+'PRC model'!$C$28 -> -2.549924962 | C49: ='PRC model'!$B$32*A49+'PRC model'!$C$32 -> 2.565219545 | D49: ='PRC model'!$B$36*A49+'PRC model'!$C$36 -> 8.685619243
A50: 8.8 | B50: ='PRC model'!$B$28*A50+'PRC model'!$C$28 -> -2.581751768 | C50: ='PRC model'!$B$32*A50+'PRC model'!$C$32 -> 2.673510039 | D50: ='PRC model'!$B$36*A50+'PRC model'!$C$36 -> 8.864684339
A51: 8.9 | B51: ='PRC model'!$B$28*A51+'PRC model'!$C$28 -> -2.613578573 | C51: ='PRC model'!$B$32*A51+'PRC model'!$C$32 -> 2.781800533 | D51: ='PRC model'!$B$36*A51+'PRC model'!$C$36 -> 9.043749434
A52: 9 | B52: ='PRC model'!$B$28*A52+'PRC model'!$C$28 -> -2.645405378 | C52: ='PRC model'!$B$32*A52+'PRC model'!$C$32 -> 2.890091027 | D52: ='PRC model'!$B$36*A52+'PRC model'!$C$36 -> 9.22281453
A53: 9.1 | B53: ='PRC model'!$B$28*A53+'PRC model'!$C$28 -> -2.677232184 | C53: ='PRC model'!$B$32*A53+'PRC model'!$C$32 -> 2.99838152 | D53: ='PRC model'!$B$36*A53+'PRC model'!$C$36 -> 9.401879625
A54: 9.2 | B54: ='PRC model'!$B$28*A54+'PRC model'!$C$28 -> -2.709058989 | C54: ='PRC model'!$B$32*A54+'PRC model'!$C$32 -> 3.106672014 | D54: ='PRC model'!$B$36*A54+'PRC model'!$C$36 -> 9.580944721
A55: 9.3 | B55: ='PRC model'!$B$28*A55+'PRC model'!$C$28 -> -2.740885794 | C55: ='PRC model'!$B$32*A55+'PRC model'!$C$32 -> 3.214962508 | D55: ='PRC model'!$B$36*A55+'PRC model'!$C$36 -> 9.760009816
A56: 9.4 | B56: ='PRC model'!$B$28*A56+'PRC model'!$C$28 -> -2.7727126 | C56: ='PRC model'!$B$32*A56+'PRC model'!$C$32 -> 3.323253001 | D56: ='PRC model'!$B$36*A56+'PRC model'!$C$36 -> 9.939074912
A57: 9.5 | B57: ='PRC model'!$B$28*A57+'PRC model'!$C$28 -> -2.804539405 | C57: ='PRC model'!$B$32*A57+'PRC model'!$C$32 -> 3.431543495 | D57: ='PRC model'!$B$36*A57+'PRC model'!$C$36 -> 10.11814001
A58: 9.6 | B58: ='PRC model'!$B$28*A58+'PRC model'!$C$28 -> -2.83636621 | C58: ='PRC model'!$B$32*A58+'PRC model'!$C$32 -> 3.539833989 | D58: ='PRC model'!$B$36*A58+'PRC model'!$C$36 -> 10.2972051
A59: 9.7 | B59: ='PRC model'!$B$28*A59+'PRC model'!$C$28 -> -2.868193015 | C59: ='PRC model'!$B$32*A59+'PRC model'!$C$32 -> 3.648124483 | D59: ='PRC model'!$B$36*A59+'PRC model'!$C$36 -> 10.4762702
A60: 9.8 | B60: ='PRC model'!$B$28*A60+'PRC model'!$C$28 -> -2.900019821 | C60: ='PRC model'!$B$32*A60+'PRC model'!$C$32 -> 3.756414976 | D60: ='PRC model'!$B$36*A60+'PRC model'!$C$36 -> 10.65533529
A61: 9.9 | B61: ='PRC model'!$B$28*A61+'PRC model'!$C$28 -> -2.931846626 | C61: ='PRC model'!$B$32*A61+'PRC model'!$C$32 -> 3.86470547 | D61: ='PRC model'!$B$36*A61+'PRC model'!$C$36 -> 10.83440039
A62: 10 | B62: ='PRC model'!$B$28*A62+'PRC model'!$C$28 -> -2.963673431 | C62: ='PRC model'!$B$32*A62+'PRC model'!$C$32 -> 3.972995964 | D62: ='PRC model'!$B$36*A62+'PRC model'!$C$36 -> 11.01346548
